{"text_format":"3","workbook":"xlsx","n_sheets":3,"sheets":["创新训练项目","创业训练项目","创业实践项目"],"read":"whole","date_system":"1900"}

{"sheet":"创新训练项目","index":0,"n_rows":267,"n_cols":15,"rows_kept":267}
["序号","挂靠单位","项目名称","项目类型","负责人","负责人班级","负责人学号","指导教师","指导教师职称","成员人数","其他成员","项目所属学科","项目所属专业类代码","项目简介","中期检查结果"]
[1,"安全与海洋工程学院","基于计算机视觉的结构物三维重构与位移测量","双向","王思博","海工19-2班","2019011256","王琳琳/2016880001","教授","3","徐敬惟/2019011231,赵文博/2019011229","0801-力学类",{"$f":"LEFT(L2,4)","v":"0801"},"本项目研究内容主要为：首先对结构物进行图像采集；随后采用计算机视觉方法对图像进行处理，得到结构尺寸、运动、变形等信息；进而实现结构物的三维重构和位移测量。本项目主要运用材料力学、弹性力学以及matlab软件。","A级"]
[2,"安全与海洋工程学院","天然气水合物空蚀破坏规律研究","双向","王润一","海工19-3班","2019011303","张逸群/2015880059","副教授","3","安由可人/2018010242,江宜泉/2018010248","0707-海洋科学类","0707","项目研究内容：\n\"1.国内外空化空蚀与水合物研究进展与文献综述；\n2.利用Materials Studio软件建立天然气水合物模型；\n3.基于分子动力学模拟对天然气水合物模型进行空蚀破坏规律研究。\"\n","A级"]
[3,"安全与海洋工程学院","涡流锁相热成像检测方法研究","双向","李明辉","安全19-1班","2019011271","郑文培/2012880069","副教授","4","夏东霖/2019011331,张洪涛/2019011352,陈柯欣/2019011335","0829-安全科学与工程类","0829","相较于传统的涡流热成像技术，涡流锁相热成像技术不仅仅能够减少人为因素的影响，并且检测的深度范围更大。然而，目前国内对于海上平台钢结构的涡流锁相热成像检测分析几乎为零。我们团队基于指导老师现存的海洋平台层析热成像法，展开对于涡流锁相热成像方法的探索研究，并且在激励方式和数据处理方法上进行一定优化，为海上钢结构平台提供一种更加高效、可靠的安全检测方式。","A级"]
[4,"安全与海洋工程学院","基于磁各向异性和磁导率的应力检测  ","自主","陈闻澜","安全19-2班","2019011340","樊建春/1606","教授","3","王璐瑶/2019011341,郭子华/2019011361","0829-安全科学与工程类","0829","基于磁记忆检测原理以及该原理对主应力的测量，该项目对各项异性的应力进行测量开展调查研究。通过建立数学模型、有限元分析和实验相结合的方式，探索磁记忆信号和绝对应力的对应关系，补充现存磁记忆检测测量绝对应力的不足之处。","A级"]
[5,"安全与海洋工程学院"," 水下井口密封部件失效有限元建模","双向","龚晗","安全20-2班","2020011327","武胜男/2019880005","讲师","5","于龙/2020011326,阎一凡/2020011325,张无忌/2020011328,秦艺航/2020011337","0829-安全科学与工程类","0829","水下井口系统密封部件的密封性能优劣和工作的可靠性会影响海洋钻井、完井和开采的安全性和可靠性。按密封体材料区分，密封总成大致可分为非金属密封总成、金属-非金属密封总成和完全金属密封总成。在安装时驱动体对密封体施加轴向载荷，使密封体径向膨胀与高压井口头和和套管悬挂器接触以达到密封的作用。因此，可以运用有限元软件从驱动体和密封体的结构参数和材料性能角度分析密封失效机理。","A级"]
[6,"安全与海洋工程学院","有机/无机复合稳泡体系的研究及抗温抗盐可循环微泡沫体系的开发","双向","王鸣辰","海工19-1班","2019011230","杨丽丽/2015880034","副教授","5","付于晓/2019011233 ,武昀朋/2018010226,蔡磊/2021011260,赵子仪/2021011304","1207-工业工程类","1207","由于我国鄂尔多斯盆地、松辽盆地等区域地层具有压力系数低、温度高、易发生井下复杂事故等问题，可循环微泡沫体系钻井液成为钻进地层最有潜力的钻井液类型。目前大多体系仅具有抗温或抗钙性能，抗温且抗盐泡沫体系研究较少。本研究旨在通过优选或制备发泡剂及稳泡剂，并开发一套抗温抗盐可循环微泡沫体系，为安全、高效开发低压力系数地层提供有力保障。","A级"]
[7,"安全与海洋工程学院","我国主要CO₂排放来源及捕集成本分析","双向","张汝玮","海工20-3班","2020011277","陈浩/2015880026","副教授","4","康新欣/2020011222,訾昊雨/2020011243,马晨宇/2020011922","0815-矿业类","0815","注CO₂提高采收率及地质封存技术是实现CO₂资源化利用和大规模减排的重要手段，也是践行国家绿色低碳发展新理念，服务和支撑国家双碳重大战略的重要抓手。本项目拟开展我国主要CO₂排放来源的系统调研和分析工作，明确我国主要碳源的所属行业、CO₂纯度及杂质气体组成；在此基础上，进行不同碳源的捕集方式、处理步骤和提纯成本的总结和分析，为实现CCUS-EOR的驱埋协同和成本控制提供基础数据和重要参考。","B级"]
[8,"安全与海洋工程学院","非均匀地应力条件下大变形水泥环对套管应力的影响","双向","苗智博","海工19-1班","2019011241","安峰辰/2015880048","副教授","4","康一冉/2020011192,雷俊逸/2020011303,张铭轩/2020011210","0815-矿业类","0815","套管的安全性直接关系到油井的生产寿命。非均匀地应力是诸多套管损伤的因素中最重要的一种因素。在本课题中，我们拟试图研究非均匀地应力对套管应力分布的影响，并对比不同弹性模量的固井水泥在非均匀地应力下对套管抗承载力影响","B级"]
[9,"安全与海洋工程学院","一种钻井液用纳米封堵剂的研制及机理研究","双向","刘晶雯","海工21-1班","2021011245","杨丽丽/2015880034","副教授","5","刘嘉薇/2021011249 ,朱正阳/2021011272,杨昊霖/2021011251,王伟/2021011250","1207-工业工程类","1207","钻井液降滤失性严重制约钻井作业的成败。随着油气开采向10000m甚至更深进发，对钻井液处理剂的抗高温提出了重要挑战。目前抗高温处理剂主要为磺化材料，但由于污染环境，已被限制使用。绿色环保抗高温处理剂的研发尚未突破抗240℃的瓶颈，严重制约我国油气勘探开发的进程。基于此，申请项目通过有机／无机杂化策略，研发一种抗240C及高盐钙的纳米降滤失剂；本研究对超深井的安全高效绿色钻完井作业具有重要意义。\n","B级"]
[10,"安全与海洋工程学院","大变形水泥环缺失对套管受力性能的影响","双向","李梓桐","海工20-2班","2020011225","安峰辰/2015880048","副教授","3","庞安威/2020011241,陈正轩/2020011244","0815-矿业类","0815","水泥环对于保护和固定套管，封隔油、气、水层具有重要作用。在油气井作业过程中,水泥环完整性会受到破坏，,失去密封性，这将直接关系到油气井安全生产和使用寿命。因此，我们将通过数值模拟的方法，来研究到底什么样的水泥是最佳选择。本项目拟开展一下研究内容：建立新型的有限元模型，更改水泥环缺失条件，比较内层套管的受力大小。在此基础上，对水泥环和套管进行参数分析，以分析不同缺失条件下水泥环对套管应力分布的影响","B级"]
[11,"安全与海洋工程学院","石油储罐完整性管理系统智能化技术研发","双向","马宁","安全20-3班","2020011341","帅健/0088","教授","4","夏雪儿/2020011340,张淑媛/2020011652,骆昕颖/2020011651","0829-安全科学与工程类","0829","储罐完整性管理以风险评价技术为基础，通过获得储罐的基础数据，了解其服役状况，结合工艺参数、设计条件、腐蚀情况等，分析设备发生失效的概率，以及失效后造成的后果，对设备进行综合评价，得出设备的风险等级，在当前可接受风险水平的条件下，区分风险较高的储罐，使检测和管理行为更加有效地集中于风险较高的储罐，提出合理检测策略。开发本软件的目的是为了对原油储罐进行可视化的完整性管理，借助智能手段提供可行的管理方案","B级"]
[12,"安全与海洋工程学院","油气生产过程受限空间作业人员不安全行为监测预警","双向","杨艾琳","安全20-3班","2020011344","胡瑾秋/2422","教授","5","董强/2020011356,方浩旭/2020011365,叶盈盈/2020011342,桂明浩/2020011294","0829-安全科学与工程类","0829","本项目基于实现追踪技术，以受限空间特种作业人员为对象，将对受限空间恶劣环境对作业者的生理、心理健康及工作效率的影响进行调研，对各类作业人员不安全行为模式分析，通过模拟受限空间作业人员工作情景，设计测试任务，如人员操作正常、呼吸困难、心智游移等场景，通过眼动数据采集，提取不安全行为及隐患的眼动数据特征及图谱。选取模式识别方法，建立人员安全监测预警模型，开展实验测试与应用研究。","B级"]
[13,"安全与海洋工程学院","材料力学典型例题模拟软件开发","双向","蒲浩宇","安全20-3班","2020011352","段庆全/2115","副教授","5","岑小东/2019011318,李易恒/2019011315,徐辉龙/2020011354,杨斯骞/2019011319","0829-安全科学与工程类","0829","材料力学运用范围广阔，涵盖的领域复杂且数目庞大，研究材料力学知识，对我们的生产生活有着举足轻重的影响。但材料力学学习抽象，题目难度大，学生学习压力也相比其他课程有着一定的负担。将经典的材料力学与软件开发想结合，开发出一款能够帮助老师教学与学生辅助学习相关的软件产品，为之后的学习和授教提供有用的途径，为广大师生带来方便有效的学习工作。加深学生对学科的认识，减轻老师的工作压力，达到切实可行的目标。","B级"]
[14,"安全与海洋工程学院","天然气水合物压后产能模拟研究","双向","王崇人","海工19-2班","2019011252","张逸群/2015880059","副教授","3","刘鑫宇/2019011253,伍家燔/2020011213","0805-能源动力类","0805","天然气水合物分布于深海或陆域永久冻土中，其燃烧后仅生成少量的二氧化碳和水，污染远小于煤、石油等，且储量巨大，因此被国际公认为石油等的接替能源。本项目是针对天然气水合物压后产能的模拟研究。项目主要内容为： 1.分析查阅国内外天然气水合物开采研究进展与文献综述；2.利用HydrateResSim软件建立天然气水合物降压开采数值模型；3.开展压后天然气水合物降压开采数值模拟，研究裂缝分布对产能影响规律。","B级"]
[15,"安全与海洋工程学院","基于机器学习的CO2-EOR采收率预测","双向","魏沛霖","海工20-2班","2020011223","陈浩/2015880026","副教授","1",null,"0819-海洋工程类","0819","查阅文献资料，收集国内外实施CO2-EOR的油藏储层参数及历史生产数据，建立油藏数据集。在油藏数据集基础上，通过支持向量机等方法根据储层相关参数对CO2-EOR采收率进行回归预测。研究CO2在海上油藏储层孔隙中的赋存及运移机理，明确不同储层条件下二氧化碳驱油过程中的驱油过程及该驱油过程后CO2在不同孔隙尺度下的埋存状态","B级"]
[16,"安全与海洋工程学院","基于机器学习的CO₂地质封存潜力评估新方法","双向","郭海睿","海工20-1班","2020011215","陈浩/2015880026","副教授","4","左进府/2020011279,李逢晖/2021011248,宋彭辉/2020011206","0815-矿业类","0815","CCS（Carbon Capture and Storage）技术被视为是一种直接、有效的减排手段，该技术将捕集到的CO₂处理后注入地下储层，从而减少CO₂向大气中排放。本项目基于CO₂地质封存过程中CO₂-水-岩反应机理，在分析和明确储层中碳封存潜力的主控因素和影响规律的基础上，收集国内外典型区块CO₂封存潜力评估数据并建立数据库，建立一种基于机器学习算法的CO₂地质封存潜力评估新方法。","B级"]
[17,"安全与海洋工程学院","一种海上高温高压钻井井漏预警系统设计","双向","刘薇","安全20-2班","2020011311","武胜男/2019880005","讲师","1",null,"0829-安全科学与工程类","0829","针对复杂海洋环境和地质工况的影响，海上高温高压井钻井过程易发生井漏等风险。传统的钻井工程风险预测无法满足现海上施工安全要求。钻井井下风险早期识别与预警能快速重建井眼压力平衡，提高早期井控安全性。本项目基于井底压力控制的海上高温高压钻井井漏风险预警模型和软件设计，对井漏与监测参数的表征规律的时间序列趋势预测和多源信息融合，分析不同作业阶段风险的严重程度。本研究成果具有重要的理论意义和工程应用价值。","B级"]
[18,"安全与海洋工程学院","深水闸板防喷器剪切失效数值模拟","双向","王宇晰","安全20-2班","2020011323","武胜男/2019880005","讲师","4","张澳丹/2020011313,曾琦轩/2020011310,吴甲隆/2020011322","0829-安全科学与工程类","0829","深水防喷器作为钻井安全的最后防线，一旦失效将导致井喷、井涌等严重事故，因此对井喷工况下闸板防喷器剪切失效机理是亟需解决的瓶颈难题。本研究从闸板防喷器剪切机理出发，针对复杂工况下的防喷器剪切运动过程、受力状态进行评价分析，研究闸板防喷器系统的失效模式、失效原因和失效变化规律，最终通过仿真建模与理论分析等方法，提高整个钻井系统的安全可靠性，为多工况下闸板防喷器剪切性能评估提供支撑。","B级"]
[19,"安全与海洋工程学院","LNG接收站风险管控平台智能化软件的研究","自主","周炜超","安全21-2班","2021011203","帅健/0088","教授","5","游利娟/2021011189,李翔/2021011205,曾庆祯/2021011213,刘健/2021011196","0829-安全科学与工程类","0829","结合新时代安全管理需求，深入研究LNG接收站的风险管控平台，从而提高LNG接收站的安全性，延长LNG储罐的使用寿命。本科创小组将开发出一个基于LNG接收站风险评价的智能决策软件，并完成一篇关于该风险评价智能决策软件的的研究论文，将智能化更加精确地应用到LNG接收站的风险管控当中，进一步减少人力物力财力的损失。","B级"]
[20,"安全与海洋工程学院","针对餐饮业的燃气泄漏预警系统设计","自主","吴彬彬","安全20-1班","2020011283","梁伟/2095","教授","4","苏芳禾/2020011317,高琪馨/2020011280,李佳轩/2020011363","0829-安全科学与工程类","0829","近年来餐饮业燃气事故频发，大部分事故发生源于报警器自闭阀失效，而燃气泄露预警问题存在的缺陷迄今仍无高效预警手段，因此本项目成员查阅大量文献，调查现有燃气安全监测方法及设备并拟通过Matlab程序设计，利用深度学习技术对漏气音波及时精准捕捉，辨别出燃气泄漏状况，制定标准报警规范，及时向相关人员报警，减少事故的发生和人员生命财产损失。","B级"]
[21,"安全与海洋工程学院","新型复合材料采油管在轴拉载荷作用下的力学性能模拟","双向","刘有康","海工21-1班","2021011263","安峰辰/2015880048","副教授","5","唱响/2021011261,张秀龙/2021011300,徐浩洋/2021011299,朱驰衡/2021011271","0819-海洋工程类","0819","采油管是将油井底部的油、气输送到地面，进入集输流程的管道，是油气田开发的关键采油设备之一。采油管是维持油井运行的生命线，一旦管体由于某种原因而损坏，可能导致整口井的减产，甚至报废。轴拉作用下采油管力学性能的计算对采用管结构设计起到至关重要的作用。本课题拟探究复合材料采油管在轴拉作用下的力学响应。\n","C级"]
[22,"安全与海洋工程学院","安全高效新型海洋隔水导管力学分析与优化设计","双向","杭天晨","海工21-1班","2021011244","殷启帅/2021891005","讲师","5","李志明/2021011254,孙一丹/2021012201,朱峰/2021011255,鹿啸岳/2021011265","0829-安全科学与工程类","0829","设计海洋隔水导管变齿宽槽宽螺距不变螺纹，通过ANSYS数值模拟分析螺牙应力分布和螺纹等效应力，开展失效试验及对比极限抗扭试验验证螺纹可靠性及抗扭性能。建立隔水导管承载力计算模型，设计导管承载力加强装置及启动工具。设计新型多导程螺纹连接结构，实现隔水导管快速对扣与高效连接。","C级"]
[23,"安全与海洋工程学院","行星齿轮箱典型部件故障模拟实验研究","双向","杨晴晴","安全19-3班","2019011366","段礼祥/2100","教授","3","温彦超/2020011301,韩宇恒/2021011209","0829-安全科学与工程类","0829","行星齿轮箱承载动态载荷，工况复杂、工作环境恶劣，行星轮极易发生故障，及时发现其故障征兆并进行有效的辨识，具有重要意义。相对于振动信号，声音信号可通过非接触的方式采集，在高温、高腐蚀环境下，仍能从声音信号中获得可靠的机械设备重要信息，同时，声音信号具有故障敏感性强、易采集、非接触式测量等优势。通过应用声信号进行行星齿轮箱故障检测，可减少行星齿轮箱故障检测的环境局限性，保障行星齿轮箱的安全运行。","C级"]
[24,"安全与海洋工程学院","四足类巡检机器人的设计","双向","马翌祥","安全21-3班","2021011240","王金江/2014880053","教授","2","王欣琳/2021011243","0829-安全科学与工程类","0829","调查四足类巡检机器人技术应用现状，从检测和运动形态方面对相关机器人技术进行了分析和分类研究，给出了四足类巡检机器人技术应用建议方案，并对四足类机器人进行了经济性分析，并针对实际情况进行四足类巡检机器人设计工作。同时对现有检测设备进行改进，使之兼备多种性能。","C级"]
[25,"安全与海洋工程学院","一种用于结构力学教学的连续梁教具的制作","双向","张艺辰","海工21-2班","2021011301","安峰辰/2015880048","副教授","4","陈顺/2021011280,马志鸿/2021011285,邓云飞/2021011283","0801-力学类","0801","连续梁有中间支座，所以它的变形和内力通常比单跨梁要小，因而在工程结构（如桥梁）和机件中应用很广。\n为了更好说明连续梁的结构特点及特性研制一个鉴定与连续梁结构的特性对比，现代课堂教学教具直观理解连续梁的静不定结构，同时进行比较和检测。通过在结构力学课程中，现代课堂教学教具的使用加深了学生对结构力学基本概念和基本理论和连续梁结构力学特征的理解。","C级"]
[26,"安全与海洋工程学院","油气田站场风险演化及预测预警研究","双向","邝振宇","安全21-1班","2021011167","徐晴晴/2017880008","讲师","4","张雅鑫/2021011190,朱鹏辉/2021011184,陈向东/2021011197","0829-安全科学与工程类","0829","油气勘探与生产领域是技术密集型业务领域，生产工艺链条长，井场、管道、站库等设备设施种类繁杂，风险管控难度大。鉴于生产运行产生的数据量大、数据类型多、数据价值密度低，油气田迫切需要利用数据实现生产运行安全预警和智能化决策助力安全生产等实际情况，根据近年来油气管道行业安全预警方法，从预警灵敏度、定位功能、预警功能、预警距离、反馈时间、误报概率、可维护性、适应效果以及投资费用等方面进行研究","C级"]
[27,"安全与海洋工程学院","一种海面溢油收集装置及智能化的收集方法","双向","朱晓青",null,"2021211063","赵天奉/2339","副研究员（自然科学）","4","方翔/2021215804,孙泷/2021215833,杨帅/2021211720","0829-安全科学与工程类","0829","      旨在研发一种海面溢油收集装置，利用所携带的风帆机构和喷射机构提供动力，在作业船投放后自动探测溢油区域并前往收集，且可在完成收集工作后自动返回。主要包括油水收集存储机构和风帆机构。从小模型样机着手，研究智能收集与智能组网。","C级"]
[28,"安全与海洋工程学院","作业风险智能视频监控预警系统设计","双向","贺娟","安全21-3班","2021011222","王金江/2014880053","岗位教授","3","黄翰卿/2021011202,舒铖瑞/2021011168","0829-安全科学与工程类","0829","本次作业风险智能视频监控风险智能识别预警系统设计主要着眼于调查施工场地工作人员的安全帽等安全设备的佩戴情况，同时对安全防护设备的佩戴合格度进行评估和监测，再对佩戴不合格的人员进行智能预警，从而使工作人员的佩戴合格度整体提高，以提高工作人员的安全意识，降低安全事故发生概率。","C级"]
[29,"安全与海洋工程学院","齿轮箱故障诊断的系统软件研究","双向","李科鋆","安全21-1班","2021011164","徐晴晴/2017880008","讲师","3","徐明杰/2021011166,朱信安/2021011171","0829-安全科学与工程类","0829","本研究将利用系统软件通过对不同齿轮箱振动信号频谱的的分析、处理，实现对齿轮箱各种故障原因的判断。及早发现齿轮箱故障发生原因及其位置，并分析应采取的措施，避免对实验设备及人员造成伤害。同时针对齿轮箱工作过程中的安全问题，进行齿轮箱故障诊断的系统软件研究，开发齿轮箱故障诊断的系统软件，具有一定的经济效益和社会价值，应用前景广泛。\n","C级"]
[30,"安全与海洋工程学院","碳纤维钻杆抗扭承载力的有限元分析","双向","韩沛","海工19-3班","2019011281","安峰辰/2015880048","副教授","4","胡宁元/2019011258,刘聪/2021011292,陈祉夫/2019011262","0801-力学类","0801","随着石油和天然气的勘探和开采难度越来越大，深井、水平井、大位移井、含硫环境、低温环境等对于钻杆的要求越来越高。另一方面，碳纤维复合材料钻杆具有质量轻、强度高、耐腐蚀性强等优点，可以很好地满足石油钻井所面临的挑战。鉴于此，本课题拟研究碳纤维钻杆在钻井过程中的力学响应，为碳纤维钻杆后期的设计奠定理论基础。","C级"]
[31,"安全与海洋工程学院","不同偏心条件对夹层管在外压作用下界面粘结应力的影响","自主","周政扬","海工20-1班","2020011197","安峰辰/2015880048","副教授","5","邱俊熙/2020011199,林翰/2020011198,艾迪/2020011200,李明锐/2020011212","0819-海洋工程类","0819","深水管道是深水油气开发所需关键设备之一,在铺设及服役中，深水管道常因与高水压相关的复合载荷而发生屈曲压溃破坏。一种由FRP外管、混凝土夹心层及钢管所组成的夹层管为解决这些问题提供了经济又可靠的解决方案。然而，由于这种组合材料涉及三种界面、两种材料，构造比较复杂。本课题拟通过有限元的方法探究不同偏心对外压作用下夹层管内外双材料界面粘结应力的影响，为夹层管生产标准的制定奠定理论基础。","C级"]
[32,"安全与海洋工程学院","我国海上油田CO2驱油埋存潜力研究","双向","刘超","海工20-1班","2020011202","陈浩/2015880026","副教授","5","李甲豪/2020011216,崔天聪/2020011201,陈天蔚/2020011214,马英轩/2020011207","0815-矿业类","0815","近年我国海上低渗油藏储量比例逐年增加，该类油藏物性差，注水开发不理想；同时，勘探中钻遇较大储量规模的高含CO₂气藏，目前还难以动用。CO₂驱油及埋存效果受地质、油藏、工艺等多方面因素影响，有必要针对国内典型海上油田，调研和分析CO₂气源分布情况；在此基础上，结合油藏条件、开发阶段等资料，评价海上油田CO₂驱油及埋存潜力。对于我国海上低渗油田提高采收率、天然气资源高效利用及温室气体减排具有重要意义。","C级"]
[33,"安全与海洋工程学院","站场重要设施状态监测与安全预警技术研究","双向","程诺","安全21-2班","2021011198","徐晴晴/2017880008","讲师","4","董家延/2021011208,张仟/2021011207,袁淇/2021011201","0829-安全科学与工程类","0829","本项目以油气田集输站场为研究对象，建立站场重要设施状态监测与安全预警技术，通过监测预警技术研发，降低站场设施事故后果，提高减灾能力，杜绝重特大事故，全面提升站场安全管理水平。利用各种传感器采集站场重要设施的状态信息数据，通过无线网络进行数据传输，建立站场重要设施运行状态实时监测网络，及早发现重要设施事故隐患实现早期预警，并为站场风险决策和应急救援提供状态数据。","C级"]
[34,"安全与海洋工程学院","复合材料采油管在井筒传热过程中的温压敏感分析","双向","顾芯源","海工20-2班","2020011239","安峰辰/2015880048","副教授","5","王志浩/2019011232,王东雯蓄/2020011227,陈宇行/2021011262,黄若宸/2020011272","0819-海洋工程类","0819","采油管是油气田开发的关键设备之一，传统采油管多以钢合金为主，其耐腐蚀性能较差，使用年限不长，本项目拟将复合材料应用于井下采油管从而实现减轻采油管失效对石油开采带来的压力。因采油管温压计算对井下采油管受力分析及结构设计起到至关重要的作用，本课题拟探究复合材料采油管各参数对井筒温压剖面影响。","C级"]
[35,"安全与海洋工程学院","夹心层材料的力学性质对深水夹层管抗外压性能的影响分析","双向","王涛","海工20-2班","2020011246","安峰辰/2015880048","副教授","4","李阳/2020011247,王兴洲/2020011271,张俊杰/2020011245","0707-海洋科学类","0707","深水油气开发对保障我国能源安全有重要意义，而深水管道是深水油气开发所需关键设备之一。在铺设及服役中，深水管道常因与高水压相关的复合载荷而发生屈曲压溃破坏。然而，深水夹层管为解决这些问题提供了经济又可靠的解决方案。由于这种组合管涉及三种界面、两种材料，构造比较复杂。鉴于此，本课题拟通过有限元的方法探究不同夹心层材料对夹层管力学性能的影响，进而为夹层管生产中夹心层材料的选择提供相应的依据并奠定理论基础","C级"]
[36,"安全与海洋工程学院","钻井过程风险监测数字孪生系统设计","双向","黄哲豪","安全20-3班","2020011349","王金江/2014880053","教授","4","徐欣/2020011338,郭逸翔/2020011335,田瑞基/2020011364","0829-安全科学与工程类","0829","通过收集钻井过程中各式各样的数据和在钻井平台发生危险事故时设备的各项数据，在计算机中对钻井过程进行模拟，在钻井过程中通过收集不同的物理量进行分析，对可能造成危险的机器和部件进行智能监控和提前预判和在危险发生后进行数据反馈和险情追踪，预防二次事故。","C级"]
[37,"安全与海洋工程学院","压力容器小口径接管缺陷检测技术研究","双向","郭欣果","安全20-2班","2020011316","郑文培/2012880069","副教授","5","陈海云/2020011286,李冰洁/2020011315,梁佳/2020011361,韩博星/2020011360","0829-安全科学与工程类","0829","压力容器是油气装置中的核心设备，容器接管是压力容器中常见的结构，其安全问题不容忽视。但是连接附属设备或者喷嘴等装置的小口径接管焊缝通常会被忽略，尤其是小接管的焊缝。小接管多为盲肠、死区、积液和震动部位，且很难控制制造质量，存在较大安全隐患，但针对小接管焊缝的埋藏缺陷检测迄今仍无有效手段，因此我们针对小接管焊缝的埋藏缺陷应用涡流热成像进行研究和试验，并制定标准规范草案，指导今后的小接管焊缝检验检测。","C级"]
[38,"地球科学学院","利用波痕参数定量恢复古水深——以北京虎峪长城系常州沟组为例","双向","刘师晴","资源20-5班","2020010033","王俊辉/2016880027","副教授","2","李宝莉/2020010007","0709-地质学类","0709","  用沉积岩的沉积构造再造古沉积环境是沉积地 质学研究的重要内容之一 。已有一些学者在定量地 研究古环境的物理参数方面进行了有意义的探索 。许多实验研究表明,波痕的波长与摆动流近床底幅度密切相关。保存在地质体中的尖峰状摆动波痕是重塑古沉积环境的参数良好的工具。\n  本项目通过测量北京虎峪长城系常州沟组的波痕参数，定量恢复出古水深，重塑古沉积环境。","A级"]
[39,"地球科学学院","榴辉岩的岩石学特征 -以祁连山超高压变质岩为例","自主","党文乐","地质20-1班","2020010057","李壮/2017880028","副教授","2","冈子杨/2020010008","0709-地质学类","0709","  众所周知，石榴石与辉石组成的矿物为石榴辉石岩。它与榴辉岩是两种完全不同的岩石。而且目前对其中石榴石的研究较为细致，但是对辉石缺少相应的分类及特征。因此我们的目的主要是通过对祁连山地区超高压变质岩的岩石学等综合研究，通过探索其榴辉岩的矿物成分和结构构造来判断其岩石学特征及构造成因。为同学们积累部分榴辉岩岩石学特征且能为学校提供薄片标本，丰富标本的种类，使学校标本更加齐全。","A级"]
[40,"地球科学学院","河流-三角洲体系自成因机制的相互作用","自主","陈锦霖","资源19-4班","2019010168","王俊辉/2016880027","副教授","4","戴昀珊/2021010130,韦宇/2019010084,苏悦/2021010123","0709-地质学类","0709","本项目聚焦三角洲的发育过程，研究储集-释放和岸线自动后退两种自成因机制之间的相应特征关系。首先，在文献调研的基础上，对河口位置变化、三角洲平原坡度变化、ABT、三角洲平原水域占比和三角洲平原半径变化5个模拟实验的结果进行数据处理。然后，以实验参数为依据，构建储集-释放机制和岸线自动后退机制的数值模型。最后通过数值模型对两种自成因机制间的响应特征进行分析，得出结论。","A级"]
[41,"地球科学学院","I型花岗岩岩石学研究","自主","高航远","地质19-1班","2019010016","李壮/2017880028","副教授","3","夏昌盛/2019010018,王玥/2019010047","0709-地质学类","0709","本项目先从花岗岩分类问题入手，了解其化学特征及分类依据，再仔细了解I型花岗岩地球化学特征。通过电子探针实验对样本中斜长石、角闪石、黑云母、榍石、碱性长石进行矿物化学分析，并通过对其成分变化和含量观察，对其类型进行鉴定和划分。","A级"]
[42,"地球科学学院","假蓝宝石的矿物学研究","自主","李昊翀","地质20-2班","2020010176","李壮/2017880028","副教授","2","马振然/2020010047","0709-地质学类","0709","已经对含假蓝宝石的薄片进行了观察研究，查阅了相关文献，对假蓝宝石的出露地点、与其他矿物的共生关系有了一定的了解，目前需要做的工作大致可分为四个方面:\n  1.假蓝宝石矿物学特征。\n  2.假蓝宝石在全世界的出露情况及其与其他矿物的共生关系。\n  3.对假蓝宝石进行电子探针研究，揭示其化学成分。\n  4.假蓝宝石的出现揭示的大地构造环境。","B级"]
[43,"地球科学学院","海—湖相泥页岩岩石学特征与岩相类型对比","自主","赵柯欣","地质类21-5班","2021010127","陈睿倩/2016880036","副教授","3","杨子涵/2021010007,陈天顺/2021010179","0709-地质学类","0709","本项目主要研究对象是美国Marcellus页岩和我国松辽盆地青山口组泥页岩，通过对两种页岩进行显微镜下鉴定、X-射线衍射全岩分析、TOC及δ13C含量测定等实验，对比两种页岩的岩石学特征、岩相类型等与富有机质层段的关系，进而对比海相与湖相富有机质页岩中“油气甜点”的差异。","B级"]
[44,"地球科学学院","研究金属在原油中赋存形式的实验方法","双向","王雪","资源20-3班","2020010029","倪智勇/2012880049","副教授","2","苏洋/2020010063","0709-地质学类","0709","原油中蕴藏有丰富的金属资源, 具有重要的工业价值。但世界范围内对原油中的金属资源综合回收利用的工业实例却相对较少。本项目目的为通过实验，优选出金属在原油的赋存形式的实验方法，从而找到从原油中综合回收利用金方法，提高原油利用率，提高收益。","B级"]
[45,"地球科学学院","川南地区深层页岩孔隙结构表征研究","自主","阎慧琳","资源20-5班","2020010142","宋泽章/2016880043","副教授","1",null,"0814-地质类","0814","页岩气作为非常规能源之一，在我国储量极为丰富，是常规天然气的重要补充，但是与海相页岩相比，陆相页岩具有地质条件复杂、黏土矿物富集、孔径结构复杂、超低孔渗等特点。页岩的孔隙类型、大小、形态等结构参数直接决定了储层质量和开发效果。首先，孔隙特征决定了页岩的吸附性能及气体在孔隙中的赋存状态，进而决定了孔隙中含气量的高低；其次，孔隙结构也影响着气体在孔隙中渗能力和压裂过程中缝网的发育程度。","B级"]
[46,"地球科学学院","昌平地区地质滑坡隐患的模拟实验研究","双向","李杰客","资源20-4班","2020010070","罗良/2412,刘志娜/2014880068","副教授,副教授","5","赵桐/2020010196,蒲浩澜/2020010037,李心怡/2020010034,隆琳茜/2020010141","0709-地质学类","0709","昌平位于燕山山脉南麓，发育多个河流冲积扇，雨季存在比较大的滑坡地质隐患。本项目拟通过遥感、野外地质考察等，实测岩层产状、裂缝发育程度，结合实验室测试的孔隙度、渗透率等参数，开展构造物理与数值模拟实验，探讨昌平典型地区的地质滑坡隐患。","B级"]
[47,"地球科学学院","克拉通盆地走滑断裂带变形构造","双向","孙章琴","资源20-3班","2020010085","余一欣/2183","副教授","3","蓝苑榕/2020010006,谭忠爽/2020010147","0814-地质类","0814","克拉通盆地是指长期保持相对稳定、较少遭受变形的广大区域。早前地质学家发现走滑断层一般发育在板块边缘，处于活动性大陆地带，但随着研究技术的发展，地质学家在稳定的盆地内部也发现了小型走滑断裂，这种断裂带的形成机理与其中的变形构造与常规走滑断层有所不同，研究小组将结合资料和理论知识，实现对该类型走滑断裂带变形模式的建立，变形的机理的明确以及了解其与油气藏的关系。","B级"]
[48,"地球科学学院","当代大学生法治意识现状及培养途径","双向","常峰铭","地质类21-1班","2021010024","洪丽燕/2018881013","无","5","王超强/2021010026,赵雅/2020011945,徐成煜/2020011962,刘铄/2020011960","0101-哲学类","0101","针对目前大学生存在的法律知识欠缺且未形成系统，学习法律途径有限，对法律现象的关注碎片化、主观性强，不具备实际应用法律的能力等问题,以创新的精神调研当代大学生的法治意识现状，并提出培养大学生法律意识的具体途径。","B级"]
[49,"地球科学学院","基于地球科学视角的碳循环与双碳目标","双向","李娜","资源20-5班","2020010172","朱世发/2011880009","教授","5","贾亿博/2021010110,邵临波/2020010044,刘雄/2021010056,吴泽恩/2021011886","0709-地质学类","0709","现今中国距碳达峰目标实现时间不足十年，距碳中和目标实现时间不足四十年，我国双碳目标任务紧迫。本次研究拟从地球科学视角出发，系统研究重大地质事件的地质碳循环过程、地质碳封存过程中潜在的气/水-岩反应过程以及对岩石孔隙结构的影响、碳排放与气候变化的关系，进而明晰地质碳循环与双碳目标的关系，并改进已有数学模型为CCUS技术提供理论支撑，推动CCUS技术的发展，为碳中和事业提出地球科学视角下的看法。","B级"]
[50,"地球科学学院","基于遥感影像资料的碳汇演变预测方法对比优选","自主","胡深宇","资源20-1班","2020010039","周子勇/1884","副教授","2","吴明金/2020010038","0814-地质类","0814","以研究基于Landsat8遥感影像的研究区碳汇储量预测方法为核心目标，主要研究是通过提取目标区近年的遥感影像图，并用归一化植被指数计算公式、像元二分模型等计算方法得到的关于人工林植被覆盖度的计算公式对遥感影像进行处理得到植被覆盖面积，建立转化模型，计算区域内的人工林碳汇储量，以实现对目标区未来碳汇储量变化的预测。","B级"]
[51,"地球科学学院","基于测井数据和人工神经网络的岩石热物性建模","双向","王浩羽","人工智能19-1班","2019010014","朱传庆/2012880015","副教授","5","谢芳/2018010173,赵桓宇/2020010093,李秀财/2020010080,代强/2021010133","0814-地质类","0814","随着人工智能和神经网络技术的发展，测井数据广泛地与之相结合，解决了许多地质问题。所以将测井大数据与人工神经网络相结合，对热导率进行预测也成为值得探索的方法。我们期望将塔里木、松辽、四川、渤海湾盆地的热导率实测资料和测井大数据与人工神经网络相结合，实现对此处岩石热导率的预测建模，结合当地的其他地质特征对该模型的鲁棒性进行扩展。","B级"]
[52,"地球科学学院","中低温水热型地热资源优化开发的数值模拟研究","双向","周一珂","资源19-4班","2019010160","朱传庆/2012880015","副教授","4","史泽辉/2020010072,宋钰楦/2021010002,张佳琦/2018010165","0814-地质类","0814","本项目以研究区地质、构造、地层、温度、岩石热物性资料等结合水文地质条件，在此基础上对油气井区、厂矿企业的废弃井以及居民小区周缘的水热型地热资源开发提出较为明确的利用方案；结合数值模拟手段，利用COMSOL Multiphysics软件通过水热耦合模拟方法对于选定的地热资源有利区进行多参数模拟；对于区块内的水热地热资源开发利用进行综合研究，建立热储模型和地热资源开发数值模型，提出优化设计方案。\n","C级"]
[53,"地球科学学院","鄂尔多斯盆地庆城油田长7页岩层系天然裂缝对水力压裂缝的影响研究","双向","霍靖麒","资源20-4班","2020010052","吕文雅/2017880034","副教授","3","李卓远/2020010134,马占才/2020010076","0709-地质学类","0709","关于研究区的裂缝和压裂方面的研究内容其实已经做的较多，而研究区人工压裂缝和多尺度天然裂缝耦合规律不明确；关于天然裂缝与人工裂缝耦合关系是裂缝性地层中水力裂缝扩展研究不可回避的问题，开展页岩储层脆性条件下地应力、天然裂缝与人工裂缝的研究，以便于更好地指导页岩储层的注水开发。","C级"]
[54,"地球科学学院"," 西湖凹陷反转构造特征及控油气作用","自主","欧长健","资源20-4班","2020010075","余一欣/2183","副教授","3","史国梁/2020010110,唐锋/2020010049","0814-地质类","0814","西湖凹陷区具有良好的油气地质条件，经过四十年余年的地质勘探，已探明了多个油田，有很大的开发潜力，且西湖凹陷有重要且典型的反转构造，在之前的研究中已经对其有了一定的成果，本次科创以西湖凹陷中的反转构造为主要背景，更进一步的探究：1反转构造的变形特征和一些基本的动力学形成机制2、反转构造形成演化过程；3、反转构造与油气聚集关系。从而更好的服务油气。","C级"]
[55,"地球科学学院","北京房山-下苇甸地区中生代构造变形特征及成因模拟","自主","李德伟","地质20-1班","2020010042","于福生/2045","教授","3","罗珊/2020010175,曾维永/2020010139","0709-地质学类","0709","研究地区为京西的房山至下苇甸地区，利用现代仪器，探究其中生代的构造变形及其相应特征，收集构造要素信息，根据断裂褶皱要素信息作出玫瑰花图和褶皱赤平投影，同时采取野外调研，采集研究地区的构造要素信息和火成岩样品，进行分析化验，得到相关结果并建立构造模型，随后开展物理模拟实验进行验证。","C级"]
[56,"地球科学学院","榴辉岩包体定年的几种同位素方法对比","自主","黄铖铮","地质20-1班","2020010051","孙晶/2015880039","副教授","1",null,"0709-地质学类","0709","不同的放射性同位素定年体系具有不同的封闭温度，因此只有在相应的地质背景下才能得到有意义的同位素年龄。通过对榴辉岩定年方法的讨论，选择确定榴辉岩包体原岩（在已确定原岩为洋壳的前提下）形成年龄的相对合适的方法，利用该方法下得到榴辉岩原岩的形成年龄，以此进一步讨论板块开始俯冲的时间。","C级"]
[57,"地球科学学院","鄂尔多斯盆地庆城油田长7页岩层系微裂缝发育特征研究","双向","郭芮彤","资源20-4班","2020010088","吕文雅/2017880034","副教授","3","梁冯韬/2020010183,吕对林/2020010113","0814-地质类","0814","本项目主要是研究鄂尔多斯盆地庆城油田长7页岩层系微裂缝。结合岩心、地表露头，通过铸体薄片、扫描电镜分析等方法，先对该区域宏观裂缝发育特征进行总结记录，再对微观裂缝进行定量、定性、物性参数描述，明确在砂岩和泥页岩两类不同岩性储层中影响微裂缝发育的因素，如沉积作用、构造作用等，并在此基础上对比不同岩性的差异，总结出长7页岩层系微裂缝的成因类型，影响不同成因类型微裂缝发育的控制因素和其对储层物性的贡献。","C级"]
[58,"地球科学学院","陆相页岩微纳米孔隙结构与分形特征研究","自主","陈毅","地质20-1班","2020010041","朱世发/2011880009","教授","5","袁英博/2020010191,魏博/2020010107,牟箭宇/2020010043,宋鹏/2020010040","0814-地质类","0814","以四川盆地仪陇-平昌地区侏罗系为例，通过X射线衍射(XRD)分析、扫描电镜(SEM)图像分析、核磁共振(NMR)实验，运用分形维数理论，讨论NMR分形维数与矿物组成、地球化学参数、物性参数之间的相互关系，并且通过SEM图像提取技术定量化研究页岩储层孔隙特征。研究内容：① 泥页岩矿物组成；② 泥页岩地化特征；③ 泥页岩孔隙类型；④ 孔隙结构与分形特征；⑤ 储层控制因素","C级"]
[59,"地球科学学院","花岗岩风化损失量及其控制因素研究","自主","李馨瑜","资源20-4班","2020010003","金振奎/1265","教授","3","黎飞凡/2020010162,王雨轩/2020010026","0814-地质类","0814","自然界是一个变化多端的动态环境,每一个事物无时无刻都在变化。其中,岩石风化的过程一直为地质学家们所研究,随着科学技术的进步,信息知识的不断融合,研究岩石风化的过程以及岩石化学成分的变化规律越来越深入,本文主要通过北京周口店地区出露一块花岗岩基底，分析砂岩风化的矿物丢失情况，对岩石进行定量分析得出风化对成分的改变，拟得出具体数据。","C级"]
[60,"地球科学学院","基于地震属性的砂体智能预测方法对比优选","自主","林紫豪","资源20-4班","2020010192","孙盼科/2016880015,徐朝晖/2316","讲师,副研究员（自然科学）","5","金世贵/2020010012,雷雯婧/2020010089,钟大桂/2020010149,李起豪/2020010128","0814-地质类","0814","本次研究拟以属性融合方法优选对比为核心，通过地震切片技术来提取不同尺度层位的地震属性，并用多元回归、支持向量、GBDT、深度学习等方法来实现属性与测井解释砂体数据的拟合，并通过优选分析，选择与属性数据特征具有一致性的融合方法最终建立预测模型，推广并到井间，实现平面上砂体分布的预测。","C级"]
[61,"地球科学学院","双碳目标下油气行业发展前景","自主","周芷羽","地质类21-3班","2021010069","康永尚/1178","教授","4","王栋/2021010020,张梦洋/2021010064,蔡雯静/2021010092","0814-地质类","0814","本团队选择研究“双碳目标下油气行业发展前景“课题，旨在为关注油气行业发展的人们提供帮助，让他们能快速有效真实地了解油气行业的最新发展情况，从而解答疑虑，增强信心；同时对相关技术的开发技术进行研究，收集资料，了解国内外相关研究，对比总结发现问题、提出可行性方案解决问题.","C级"]
[62,"地球科学学院","基于深度学习的岩石矿物智能识别方法研究","自主","李智博","人工智能19-1班","2019010050","徐朝晖/2316","副研究员（自然科学）","3","周德涛/2019010228,高桓宇/2019010031","0709-地质学类","0709","本次研究拟在前人研究成果基础上，充分利用机器学习算法，通过知识与数据双驱动，从海量的矿物薄片的单偏光、正交偏光图像中提取有用特征和信息，进而构建基于深度学习的岩石矿物判别模型，从而提高岩石矿物识别的精度和效率。","C级"]
[63,"地球科学学院","黏土矿物X射线衍射实验前处理方法优化研究","双向","杨亚琪","地质20-2班","2020010173","史燕青/2013880028 ","工程师","2","张译丹/2020010171","0709-地质学类","0709","X射线衍射分析（简称XRD）是多相黏土矿物分析的重要手段，除了确定样品中黏土矿物的类型，还可以进行定量分析。其分析结果的优劣，样品的前处理及定向片的制作都会影响分析效果，是非常重要的操作环节。国内外同行在制样方面做过不少研究工作，提出了一系列的制样方法。\n本项目旨在通过对不同制样方法，总结和优选最佳方案（比如试剂、温度、时间选择等）优化黏土矿物X射线衍射实验前处理流程。\n","C级"]
[64,"地球科学学院","沧东凹陷孔二段页岩油储层特征研究","双向","贾高航","资源19-5班","2019010211","刘小平/2002","教授","2","汤纪元/2019010214","0814-地质类","0814","沧东凹陷孔二段泥页岩具有有机质丰度高,热演化程度适中,厚度大,脆性矿物含量高的特点,页岩油勘探开发潜力巨大。通过对沧东凹陷孔二段泥页岩的储层岩性岩相特征，储层孔隙类型及发育特征，储层孔隙结构及物性特征研究，做储层综合评价。通过对钻井，地震资料的收集与总结，实现对该岩段的储层特征的分析研究。","C级"]
[65,"地球科学学院","辉绿岩侵入对页岩油储层的影响机理","双向","彭闻迪","资源19-2班","2019010105","刘小平/2002","教授","3","史昊/2020010151,董国梁/2020010081","0814-地质类",{"$f":"LEFT(L66,4)","v":"0814"},"中国陆相泥页岩层系中常见辉绿岩侵入，在侵入区往往可见丰富的页岩油资源显示。本项目综合运用地震、钻井、测井和野外露头资料，以苏北盆地辉绿岩侵入体与围岩为研究区，利用储层研究技术，开展岩浆侵入作用对围岩储层影响机理研究。通过岩石学特征、矿物成分、化学成分、储层孔隙度、渗透率、储层分布特征等，分析辉绿岩对储层的影响，并与未受侵入岩影响的同层位储层进行对比，从而探讨辉绿岩侵入对页岩油储层的影响。","C级"]
[66,"地球科学学院","沧东凹陷孔二段页岩油可动性评价","双向","谢文辉","资源19-5班","2019010201","刘小平/2002","教授","3","李佐伟/2019010206,刘延峰/2019010213","0814-地质类","0814","本研究课题以沧东凹陷孔二段页岩油为研究对象，在页岩含油性及可动性研究现状调研基础上，开展核磁共振、多温阶热解分析等分析测试，进行页岩含油性轻烃恢复和重烃补偿定量研究，并对孔二段页岩含油性进行评价。\n研究内容：1.页岩含油性及可动性研究现状调研；2.孔二段页岩含油性分析；3.孔二段页岩油可动性定量评价。","C级"]
[67,"地球科学学院","超深层微生物白云岩多尺度定量表征","双向","杨茜元","资源19-1班","2019010077","宋泽章/2016880043","副教授","1",null,"0709-地质学类","0709","为了对超深层微生物白云岩的微观孔隙结构实现全方位的精细表征，对其孔喉类型、孔喉配置、孔喉形态、沥青质分布、赋存状态及含量、孔喉连通性（微裂缝发育情况）、孔喉非均质性、沥青质非均质性等方面进行研究和评价。\n","C级"]
[68,"地球物理学院","基于地质雷达信号波探测地下埋设物的研究","双向","温铭","物探20-1班","2020011050","赵建国/2180","研究员（自然科学）","2","宁久攀/2020011053","0708-地球物理学类","0708","利用地质雷达信号波对不同的地下埋设物进行探测，对探测到的地质雷达数据进行处理、成像；研究信号波频率，地下埋设物材料，埋深程度对地质雷达成像的影响。该项目主要通过利用探地雷达采集数据，利用FDTD模拟软件GPRMax进行模拟，分析不同埋设物在地下的不同物理空间的成像结果，进行GPR数据解译。\n","A级"]
[69,"地球物理学院","基于数字岩心与岩石物理实验的碳酸盐岩弹性性质研究","双向","柴林","物探20-1班","2020011078","赵建国/2180","研究员（自然科学）","2","况行健/2020011066","0708-地球物理学类","0708","基于数字岩心与岩石物理实验的碳酸盐岩弹性性质研究\n针对性地开展目标储层物性参数测试、借助CT扫描成像技术对岩芯进行三维成像建模，同时开展岩石物理弹性性质测试。利用CT扫描数据统计岩芯孔隙结构参数，定量分析孔隙结构参数对弹性性质的影响。","A级"]
[70,"地球物理学院","超临界CO2注入对储层岩石弹性参数影响的实验研究","双向","刘南凯","物探20-2班","2020011100","贺艳晓/2015880058","副研究员（自然科学）","4","李清娟/2020011090,彭萸雯/2020011087,袁云灿/2020011126","0708-地球物理学类","0708","本研究将开展跨频段（低频、超声）岩石物理实验以研究不同温度、压力条件下盐水及超临界CO2注入对砂岩岩石弹性影响。具体研究内容如下:\n1、开展超临界CO2 注入的实验测试：选取Berea砂岩岩心，开展干燥及饱和不同盐度、温压条件下的超声实验测试；注入CO2，开展不同温度压力下的实验测试。\n2、实验测量结果分析：获取不同测量条件下的速度、衰减特性；分析实验结果影响因素。","B级"]
[71,"地球物理学院","致密砂岩气层孔隙度测井评价方法","双向","庞润成","测井20-2班","2020011177","谢然红/0939","教授","3","张玉世/2020011156,李隆达/2020011077","0708-地球物理学类","0708","首先，综合岩心物性资料与测井资料，利用声波测井、密度测井、中子测井等常规测井方法和核磁共振测井，基于线性回归、非线性数学统计方法、岩石物理体积模型等，建立致密砂岩气层孔隙度计算模型。然后，处理实际井资料验证模型的适用性。最后，优选出适用于研究区的孔隙度计算方法。\n","B级"]
[72,"地球物理学院","人工智能提高地震资料分辨率","自主","曹智勋","人工智能19-1班","2019015055","刘洋/1581","教授","3","徐柯/2019011142,陈建涵/2019011656","0708-地球物理学类","0708","提高地震资料分辨率一直是地震勘探的重点工作。由于震源频谱的限制以及地震波在传播过程中的衰减作用，导致地震资料频带宽度有限、缺乏有效的高频或低频成分，而地震数据的分辨率由数据的主频和频带宽度所决定。本项目拟基于地震勘探的理论，应用人工智能的技术，将深度学习的方法引入到拓宽频带、提高主频的研究中，实现在采集的有效数据基础上进一步提高地震资料分辨率的目标，为油气勘探提供更准确的信息。","B级"]
[73,"地球物理学院","深层页岩气储层宽频段岩石物理 实验测量研究","双向","刘子淳","地物20-1班","2020011179","贺艳晓/2015880058","副研究员（自然科学）","3","郑浩龙/2020010096,王天栩/2020010794","0708-地球物理学类","0708","页岩作为一种广泛发育的沉积岩，具有自生自储的性质，是我国重要的油气战略资源。处于勘探开发起步阶段，是一种巨大的潜在能源，有很大的工业开采价值。\n岩石物理实验主要用来准确评价储层的岩石物理属性和岩石力学参数；同时，推广适用于页岩气储层的地震新方法也需要与岩石物理实验紧密结合，利于建立高精度的地震解释模型。\n针对页岩岩样进行岩石物理实验，测量页岩物性参数以及在不同条件下的弹性参数。","C级"]
[74,"地球物理学院","叠前地震数据分相位重构方法及应用研究","双向","赵燊燊","地物20-1班","2020011163","贺艳晓/2015880058","副研究员（自然科学）","3","章嘉欣/2020011115,廖芸霞/2020011116","0708-地球物理学类","0708","在地震数据解释中，相位谱是地震信号谱中非常重要的一项，它能将普通地震资料中无法辨别的信息，例如薄层或特殊异常体等分辨不出来的信息，都能在相位谱中清晰地看到，然而到目前，地下地层结构的解释分析中会用到相位信息，显而易见，这些使用对于如此重要的相位谱利用率是不高的，所以我们需要提高我们的使用率，至目前的方法来说，我们如何使用相位谱在地质勘探中是非常重要的。","C级"]
[75,"地球物理学院","低电阻率油气层成因机理与流体识别方法","双向","梁世宁","测井20-1班","2020011150","谢然红/0939","教授","5","胡智/2020011158,江凤科/2020011151,李泽/2020011157,陈家坤/2020011145","0708-地球物理学类","0708","低电阻率油气层是指油气层电阻率相对于邻近水层电阻率而言，电阻率值偏低并引起储层流体性质解释困难的一类油气层。低电阻率油气层的成因机理一般为泥质附加导电、矿物导电、地层水矿化度差异、钻井液侵入、物性差、围岩影响等。流体识别方法主要有交会图法、曲线叠合法、人工智能方法等。本项目是结合研究区岩心及测井资料等，分析低电阻率成因机理，发展流体识别方法。\n","C级"]
[76,"地球物理学院","致密砂岩气层测井识别方法研究","双向","苏雨欣","测井20-1班","2020011084","谢然红/0939","教授","3","周津宁/2020011085,范佳乐/2020011089","0708-地球物理学类","0708","由于致密砂岩气层相较于常规砂岩气层识别困难，孔隙度、渗透率较低，通过此项研究分析致密砂岩气层的测井响应特征，结合常规测井资料，通过声波测井、密度测井、中子孔隙度测井以及核磁共振测井等方法的响应特征识别致密砂岩气层，并结合相关曲线分析，提高准确率，为其测井识别与评价提供有效途径，以便使致密储层研究向高精度发展。","C级"]
[77,"非常规油气科学技术研究院","CO2驱纳米铠甲泡沫流度控制机理研究","双向","马金亮","石工20-3班","2020010270","吕其超/2018880016","助理研究员（自然科学）","2","戴相东/2020010272","0815-矿业类","0815","利用微观可视化渗流模型，开展微观驱替实验，分析CO2驱窜流现象，明确CO2窜流规律。在此基础上，优选CO2驱铠甲泡沫流度控制体系，研究CO2铠甲泡沫在多孔介质中稳定性，分析泡沫对CO2驱的流度控制规律，揭示铠甲泡沫提高CO2驱采收率机理。","A级"]
[78,"非常规油气科学技术研究院","特高含水期N2泡沫堵水体系稳定性研究","双向","刘裕江","石工20-3班","2020010268","吕其超/2018880016","助理研究员（自然科学）","2","黄锴奇/2020010285","0815-矿业类","0815","针对稠油油藏冷采进入特高含水阶段面临水窜通道发育、底水锥进、水驱效率低等问题，优选N2泡沫堵水体系，研究泡沫化学剂、矿化度、原油、稠油降粘剂等对泡沫稳定性的影响规律，分析N2泡沫微观结构的衰变机理，探索构建N2泡沫稳定性强化方法。","B级"]
[79,"非常规油气科学技术研究院","基于一维纳米材料强化的泡沫界面粘弹性研究","双向","黄宇杰","海工20-1班","2020011209","吕其超/2018880016","助理研究员（自然科学）","1",null,"0815-矿业类","0815","本项目的目的是构建纳米纤维素强化泡沫体系，通过界面流变实验分析泡沫薄液膜的破裂和稳定机制。研究纤维素纳米纤维、纤维素纳米晶等一维纳米材料对泡沫的稳定规律。优选并构建高稳定性的一维纳米材料强化泡沫体系，研究纳米材料浓度、矿化度、温度等对泡沫界面粘弹性的影响，分析一维纳米材料对泡沫液膜机械强度的作用规律，指导高液膜强度泡沫体系的构建","B级"]
[80,"非常规油气科学技术研究院","裂缝性潜山油藏水驱渗流规律研究 ","双向","严克彬","石工20-6班","2020010358","吕其超/2018880016","助理研究员（自然科学）","2","鲁京松/2020010280","0815-矿业类","0815","裂缝性碳酸盐油藏本身地质条件复杂，裂缝发育程度的差异性大，因此对注水水驱开发的实施提出了更高的要求。目前，针对裂缝性碳酸盐油藏注水水驱渗流规律的研究尚未开展，储层在能量补充及衰竭过程中的应力敏感特征不明确，潜山剩余油启动机制仍不清晰，不利于注水水驱技术政策的制定。因此需要对裂缝性碳酸盐油藏注水水驱过程进行系统研究，梳理不同裂缝性碳酸盐储层油-气渗流规律，并揭示原油动用机制。","B级"]
[81,"非常规油气科学技术研究院","强非均质油藏聚驱后微观剩余油赋存规律研究","双向","郑嵘",null,"2020211836","吕其超/2018880016","助理研究员（自然科学）","2","张丽/2020011195","0815-矿业类","0815","特高含水阶段剩余油微观赋存状态亟待明确，需要对各类型储层聚合物驱、后续水驱和非均相驱后微观剩余油进行定量评价，并研究微观剩余油在驱替过程中的动态演化规律，进而在微观孔喉尺度上，对强非均质油藏聚驱后微观剩余油的认识及动用提供技术支撑。","C级"]
[82,"非常规油气科学技术研究院","特高含水期微乳液提高采收率机理研究","双向","王玮",null,"2021216537","吕其超/2018880016","助理研究员（自然科学）","1",null,"0815-矿业类","0815","我国东部大部分主力油区已进入特高含水开发阶段，在长期注水开发过程中，受储层非均质性、水油流度比及注采不平衡等因素的影响，油层极易形成窜流孔道。在特高含水期，剩余油分布复杂，更加分散，受微观因素影响显著。开采挖潜的主要对象转向高度分散而又局部相对富集的剩余油。原位微乳液吞吐驱油是水驱后有效的接替技术，而微乳吞吐的微观动用机理尚不明晰，需要通过实验确定微乳驱的提高采收率机理。","C级"]
[83,"非常规油气科学技术研究院","玛湖致密砾岩水力裂缝发育定量表征与统计研究","双向","郭心舒",null,"2020211827","吕其超/2018880016","副研究员（自然科学）","5","高铭/2020010256,高国杰/2020010244,赵楚阳/2020010247,程建伟/2020010252","0815-矿业类","0815","在水力压裂现场，由于随钻测井与录井解释的裂缝难以匹配，压裂过程中产生的水力裂缝网络也受到岩相岩性以及支撑剂的影响，因此储层中裂缝的真实展布形态难以通过测录井资料准确获取。因此，本项目通过对水力裂缝岩心进行CT扫描，获取并分析全直径岩心内部具体裂缝结构，通过对岩心的整体观察和表征，分析水力裂缝的延展规律，记录并数字化定量表征水力裂缝的发育规律和密度规律，为水力有效压裂和压裂增产机理提供理论支撑。","C级"]
[84,"化学工程与环境学院","石墨烯弹性体材料的制备及电磁屏蔽性能的研究","双向","马天佑","化工20-1班","2020010656","杨旺/2019880018","副高级","4","陈建忠/2020010657,张阔/2020010616,朱映之/2020010468","0813-化工与制药类","0813","      开展石墨烯/高分子弹性体材料的制备，探索材料的制备工艺，研究所得材料的性能，包括力学、介电、导热等参数，掌握电磁波防护材料应用的评价方法，获得一种结构-功能一体化的石墨烯/聚合物弹性体材料。","A级"]
[85,"化学工程与环境学院","超级电容器用电容碳材料的制备及性能研究","双向","陈耀鹏","化工20-1班","2020010578","杨旺/2019880018","副高级","4","王铁夫/2020010454,吴诺/2020010639,聂馨尧/2020010636","0804-材料类","0804","石油沥青和石油焦是石油加工过程中的一种副产品，目前其主要用于道路建设和燃料，经济利用价值较低。石油沥青和石油焦中碳含量较高，因此石油沥青有望成为规模化生产新型碳材料的理想碳源。该碳材料由于具有多孔的性质而有望成为超级电容器的电极材料，在储能领域展现出巨大的应用前景。","A级"]
[86,"化学工程与环境学院","油气田废水膜法锂资源回收技术研究","双向","王铁夫","化工20-1班","2020010454","孔繁鑫/2015880044","副教授","4","李承琛/2020010396,赵紫伊/2020010389,周雪/2020010379","0825-环境科学与工程类","0825","随着科技的高速发展，锂资源在生活中的应用越来越广泛，众多行业对于锂的需求量也逐步增长。传统的锂矿提锂已经不能满足人们对锂资源的需求，而油气田废水含有的丰富的金属资源也吸引着人们的探索，使用膜分离方法分离锂离子最大的难点是废水高镁锂比对分离效果的影响，本团队计划研制出一种新型镁锂分离膜技术将镁锂得到有效分离从而达到锂资源化利用的目的。","A级"]
[87,"化学工程与环境学院","重质油制备碳基过渡金属硒化物及其电解水性能研究","双向","刘子涵","化工20-3班","2020010605","杨帆/2012880067","教授","2","杨萌/2020010600","0813-化工与制药类","0813","电化学水分解法是公认为将电能转化为氢能的一种实用方法，为了大规模、低成本、高效稳定地制备氢，本项目将利用重质油制备碳基过渡金属硒化物，并对其电解水性能进行研究，寻找出高效适用的方法将碳基过渡金属硒化物作为电催化剂应用于电解水析氢的过程中，实现高性能电解水制氢电催化剂的制备。","A级"]
[88,"化学工程与环境学院","负载型Ni基催化剂制备及其催化CH4-CO2重整性研究","自主","王飏荣","化工20-1班","2020010659","崔国庆/2020880007","讲师","5","孙锜媚/2020010632,毕雅琪/2020010634,张馨/2020010640,张灵辉/2020010645","0703-化学类","0703","将主要的温室气体甲烷和二氧化碳通过干重整制备合成气是一种高效利用甲烷并降低二氧化碳排放进而缓解温室效应。该反应是在800-1000℃的工作温度下发生的强吸热反应，需要多相催化剂才能有效地转化CH4和CO2。因此，通过探究Ni基催化剂的制备条件、金属负载量及助剂等作用调控催化剂的结构，并对催化剂的性能评价及表征，制备出高性能新型Ni基催化剂，分析催化剂结构与性能的内在联系，指导催化剂进一步改进提升。","A级"]
[89,"化学工程与环境学院","天然水体中溶解性有机物成分识别研究","自主","张雨敏","环科20-2班","2020010413","闫秀懿/2350","副教授","3","李明月/2020010411,刘坤/2020010434","0825-环境科学与工程类","0825","本研究计划根据流域水环境背景，从有机质结构与成分角度出发，分析不同水体（平原河网，草原河网，森林源头区等各种类型和区域）中有机物的组成、结构、时空变化及演变规律等，形成不同流域水体中有机物成分及来源解析报告。具体包括：\n(1)多区域水体有机物组成特征与变化\n(2)源头区水体有机物物质转化过程及来源研究\n","B级"]
[90,"化学工程与环境学院","小晶粒ZSM-11分子筛的合成及催化性能研究","双向","潘思迪","化工类21-4班","2021010465","任申勇/2011880033","副教授","3","李润桐/2021010375,马浩惟/2020010619","0813-化工与制药类","0813","ZSM-11分子筛是高硅ZSM系列中的一员，四方晶系，属于Pentasil型沸石，由椭圆形十元环三维直孔道相交而成。ZSM-11分子筛具有非常独特的晶格结构，晶体构架中硅铝比高。其晶体的表面具有明显的憎水作用与很强的表面酸性，是重要的吸附剂及良好的择形催化剂。本项目主要为合成小晶粒ZSM-11分子筛，并对其进行形貌、孔结构、酸性质等的表征，最后通过裂化反应评价其催化性能。","B级"]
[91,"化学工程与环境学院","CO2吸附器的流体力学模拟研究","双向","喜小月","化工20-3班","2020010603","刘梦溪/2077","教授","3","张桐毓/2020010620,王晨宣/2021010502","1207-工业工程类","1207","以燃气电厂烟气排放的二氧化碳（CO2）为研究对象，在数值仿真方面，基于流程模拟技术，对自主低温捕集工艺流程进行校核，对CO2低温分离过程进行模拟计算，对多模块组合的分离过程进行模拟计算，对分离效率、能耗等指标进行综合分析，验证自主工艺技术的可行性并优化为最优方案，为分离/吸附/解吸等设备的优化设计提供依据。","B级"]
[92,"化学工程与环境学院","高效石油降解菌的筛选及其处理含油污泥性能研究","自主","王张帆","环工20-2班","2020010459","王庆宏/2012880066,詹亚力/1220","副教授,教授","1",null,"0825-环境科学与工程类","0825","含油污泥产自于油田开采以及原油炼制过程中，是油气田行业产生的最为重要的污染物。由于含油污泥不正确和不合适的处理方法都会对环境和人体健康带来危害，它被我国列入《国家危险废物名录》。含油污泥处理方法中的生物法以其环境友好且成本低的优点受到广泛关注。基于以上内容，本项目旨在筛选具有优越原油降解效果的菌群，并通过分离纯化进一步研究各个菌株的生理生化特性及降解性能等，使其应用于含油污泥的处理。","B级"]
[93,"化学工程与环境学院","氢气运输系统最优路径规划","自主","曾敏怡","化工20-2班","2020010499","王彧斐/2012880071","教授","3","杨静/2020010533,李子英/2020010534","0813-化工与制药类","0813","氢能源作为一种能量密度高的清洁能源，被视为未来新能源的战略发展方向。而我国由于氢能产业分布不均匀，未来加氢站大规模推行后，如何设计经济可靠的运输管网以满足散点式分布用户的需求成为一个问题。因此本项目将通过Kruskal算法和GeoSteiner算法与线性规划模型相结合，确定最优管网拓扑结构的优化方法，实现欧氏斯坦纳最小树和直线斯坦纳最小树结合的模型，探究如何实现区域内氢气运输的最优路径。","B级"]
[94,"化学工程与环境学院","二氧化碳吸附剂流体力学的研究","双向","石苗苗","化工20-3班","2020010599","刘梦溪/2077","教授","5","张逍/2020010543,郭仪婷/2020011030,覃师凯/2021010479,鹿麒麟/2021010486","0813-化工与制药类","0813","考察固态胺吸附剂在吸附器内的流动特性，固体吸附剂的原理是固体通过自动降低表面吉布斯函数来达到一个稳定的形态，估计降低表面吉布斯函数的方式有两种，一种是降低表面张力，一种是减小表面积。固体吸附气体来增大表面分子密度，从而削弱固体表面分子径向受力，进而减小表面张力就可以达到稳定状态。","B级"]
[95,"化学工程与环境学院","晶种法SSZ-13分子筛的合成","双向","胡成功","能化20-1班","2020010596","刘海燕/2261","副教授","4","杨宇/2020010624,李欣悦/2020010607,胡磊/2020010588","0813-化工与制药类","0813","本课题组开发了以天然硅铝矿物为原料合成分子筛材料的新技术路线，并以氢氧化钠为碱源开发了天然硅铝矿物的亚熔盐活化法和拟固相活化法，该方法都可以在相对较低的温度下将天然硅铝矿物中处于结晶状态的硅、铝物种解聚为具有高化学反应活性的硅铝物种。本研究以不同碱源活化的高岭土为原料，采用晶种辅助法合成SSZ-13分子筛，研究碱金属离子以及晶种的导向租用及其对所合成分子筛的相对结晶度等物理化学性能的影响。","B级"]
[96,"化学工程与环境学院","基于厨余垃圾的萱草-微生物联合修复石油污染土壤技术","自主","彭梓怡","环科20-1班","2020010392","王新伟/1858","副教授","3","杨贺然/2020010409,井思琪/2020010412","0825-环境科学与工程类","0825","在石油的勘探、开采、运输和加工等环节中，会导致大量的石油产品进入土壤环境，对土壤环境造成污染。土壤不仅与人类的生活息息相关，更是生态系统中的重要组成部分，并且，土壤修复是实现我国“双碳”目标的重要基础之一。因此，我们选用以厨余垃圾作土壤改良剂，采用植物-微生物联合的方法进行石油污染土壤的修复，以大花萱草作为实验种植植物，以合适的高效石油降解菌为试验微生物来展开研究。","B级"]
[97,"化学工程与环境学院","水合物抑制剂的筛选与性能评价","自主","王世豪","化工20-2班","2020010549","王晓辉/2019880019","副教授","3","薛姿杰/2020010531,南楠/2020010565","0813-化工与制药类","0813","围绕深水油气混输管道内水合物的防治技术，从油田化学药剂中筛选合适的化学试剂；考察试剂类型、用量和伍配性对水合物的热力学形成条件和抑制效果的影响规律，确定最佳的水合物抑制剂类型和用量，进而实现研究的目的。","B级"]
[98,"化学工程与环境学院","水合物法碳封存潜力研究","双向","许坤环","化工20-2班","2020010557","王晓辉/2019880019","副教授","4","郭世轩/2020010516,孙鑫洋/2020010554,路阳/2020010561","0813-化工与制药类","0813","二氧化碳封存被认为是一种时效性较强的减少大气中二氧化碳含量的方法。本项目研究用水合物的方法将大气中的二氧化碳进行封存，根据水合物的相平衡原理，施加外部条件，如添加多种盐类和有机物，分析不同二氧化碳流动压力、二氧化碳流动速度和流动方式等对二氧化碳水合物生成特性的影响，达到封存二氧化碳的目的。","B级"]
[99,"化学工程与环境学院","一维沸石分子筛ZMS-23的合成研究","双向","张超","能化20-2班","2020010547","吴志杰/2012880001","教授","4","韩浩/2020010546,高宇婷/2020010506,喀尔希卡·巴合孜尔/2020010548","0813-化工与制药类","0813","一维孔沸石分子筛催化材料是一类在能源化工领域中烯烃异构和加氢异构反应的催化新材料。本项目围绕低硅ZSM-23沸石的合成，考察水热合成法合成沸石分子筛的条件，探索分子筛材料的绿色、低成本的合成新路线，同时建立适宜的催化材料表征方法。","B级"]
[100,"化学工程与环境学院","油泥水热液化废水的处理与资源化利用","双向","陶岐瑞","环工19-1班","2019010602","王赫名/2015880013","副教授","3","杨丰硕/2020010486,卢晗/2020010391","0825-环境科学与工程类","0825","我们先用水热液化技术对含油污泥进行相应的预处理，先废水层进行水质检测，并对检测其分离后废水层的生物毒性和组成分析。并根据已知的MFC、MEC装置的实验原理，在此设计了优化的微生物燃料电池和微生物电解池，利用MEC装置产氢，MFC装置产电，并通过改变其外加条件测量不同操作条件对反应器性能的影响。","B级"]
[101,"化学工程与环境学院","煤直接液化沥青的化学组成分析","自主","彭云飞","化工20-3班","2020010627","史权/1334","教授","2","马扬栋/2020010612","0813-化工与制药类","0813","煤直接液化作为生产石油替代品的有效技术，对解决我国石油资源短缺、平衡能源结构、保障能源安全及国民经济持续稳定发展具有重大意义。而煤液化沥青是煤直接液化的副产品，由于经过高温高压加氢处理，可作为优质环保的原材料，用于加工制取石油焦、碳材料、润滑油、合成气和乙烯。但因认识不足，煤液化沥青现在只当做危险固体废物处理。为了更好地利用煤液化沥青，就需要对煤液化沥青的组成结构有比较全面的认识。","B级"]
[102,"化学工程与环境学院","Beta沸石负载的金属催化剂对丙烷脱氢反应性能研究","双向","李尧","化工20-3班","2020010625","吴志杰/2012880001","教授","2","马龙/2020010626","0813-化工与制药类","0813","Beta 沸石作为唯一一种具有三维十二元环通道结构的高硅分子筛，其晶体骨架和孔道结构独特，作为催化剂在石油炼制、能源化工、环境保护等领域得到了广泛应用。我国丙烷储量丰富，而近年来页岩气的开发更是让丙烷的产量进一步上升，而目前我国对丙烷的利用大多采用燃烧供能的方式，极大地降低了其利用价值。考察Beta沸石负载Ni，对于丙烷脱氢反应的性能研究。","B级"]
[103,"化学工程与环境学院","高比能锂离子电池的硅碳负极材料制备及其性能研究","双向","杨雯婷","化工类21-2班","2021010407","马新龙/2016880045","副教授","5","姬方剑/2021010417,王贤东/2021010415,刘睿扬/2021010470,范静琳/2021010396","0813-化工与制药类","0813","由于硅具有高比容量（4200 mAh/g）的特性，因此被认为是下一代新型高比能锂离子电池负极材料，但硅负极在充放电过程中体积膨胀收缩变化高达300%，多次循环后硅颗粒会发生断裂和粉化，造成负极失效。针对以上关键问题，本课题拟开发化学气相沉积耦合纳米颗粒流化技术，实现碳层对纳米硅颗粒的原位致密包覆，抑制其体积膨胀，并开展硅碳母体和石墨复合方式的研究，对硅基电池进行设计和组装，研究其电化学特性。","B级"]
[104,"化学工程与环境学院","碳基催化剂活化臭氧—过硫酸盐耦合体系去除炼化废水中有机污染物的研究","自主","赵杰东","环工20-1班","2020010462","王郁现/2016880005","副教授","4","王温棋/2020010420,杨祉桢/2020010418,王超尘/2020010438","0825-环境科学与工程类","0825","本项目拟采用碳基催化剂活化臭氧—过硫酸盐耦合技术降解水体中有机污染物，并以三维结构碳材料为催化剂，通过调控氮原子在碳材料结构中的掺杂，解决非金属材料催化稳定性低，活性较差的问题，并以实验和理论计算相结合的方式剖析催化反应机理。 ","B级"]
[105,"化学工程与环境学院","含油污泥及其超临界流体萃取组分组成分析","双向","苏鑫亮","能化20-1班","2020010586","陈振涛/2012880018","副教授","4","许鎏杨/2021010530,王格格/2021010531,汪尹/2021010634","0813-化工与制药类","0813","（1）获得油泥中有机物的结构组成，获得萃取油-溶剂二元体系的相平衡规律\n（2）筛选适宜的共溶剂，获得共溶剂对体系相行为和含油污泥萃取效果的影响规律\n（3）改变共溶剂组成和萃取条件，探索最佳的超临界流体萃取条件，实现含油污泥的高效无害化处理\n（4）获得不同萃取条件下获得油类的结构组成，探索所获得有机的组分和结构与萃取条件的关系","B级"]
[106,"化学工程与环境学院","提高碳纳米管制备效率的文献调研和实验研究","自主","李奕飞","化工类21-1班","2021010388","申宝剑/1649","教授","3","界绪森/2021010385,王浩熙/2021010394","0813-化工与制药类","0813","现阶段碳纳米管研究开发已取得巨大进展，应用前景广泛。但高效制备碳纳米管，应用于工业的可行性仍然面临着不少的问题。本研究的目的是：通过文献调研和实验研究相结合的方法，研究提高碳纳米管制备效率的方法，为今后批量化生产碳纳米管进行技术准备。主要包括：研究提高单位催化剂用量下碳纳米管的产率；低温、低能耗下实现碳纳米管的高效制备；更高效地分离催化剂和碳纳米管；高效高品质地制备碳纳米管。","C级"]
[107,"化学工程与环境学院","离子液体催化萘齐聚制备萘低聚物的反应","双向","闫晨琛","化工类21-1班","2021010370","刘海燕/2261","副教授","4","余燕伶/2021010367,刘庆炽/2021010416,王浙/2021010395","0703-化学类","0703","离子液体因其低挥发度，低可燃性等性质，在作为反应介质或催化剂时，往往能表现出特殊的催化性能。在有机化学合成方面，离子液体催化剂的研究前景十分广阔。本项目主要研究离子液体的组成，结构，酸性等对离子液体催化剂萘聚合所制备的萘低聚物物理化学性质的影响，并考察离子液体与萘以及萘低聚物的分离方法。","C级"]
[108,"化学工程与环境学院","疏水性石墨烯材料的制备","双向","赵峻腾","化工20-1班","2020010655","杨旺/2019880018","副高级","4","曹栋雁/2020010630,尹嘉琦/2020010608,涂小宇/2020010662","0813-化工与制药类","0813","石墨烯材料在很多领域展现出很好的应用前景，但是现在在某些场景下要求石墨烯材料具备较好的疏水性能，从而提升材料的稳定性，本项目开展疏水性石墨烯材料的制备，探索材料的制备的工艺，研究所得材料的疏水性能的研究。","C级"]
[109,"化学工程与环境学院","高浓度难降解有机废水的催化湿式氧化的实验研究","双向","李天乐","石工20-3班","2020010284","闫秀懿/2350","副教授","4","朱安任/2020010282,高源鲜/2021011822,兰贝尔/2021011824","0703-化学类","0703","本次科创内容为，通过添加不同种类的添加剂，用湿式氧化技术（CWAO）处理高浓度有机废水，降低其反应的温度和压力，使反应能够在相对温和的条件下完成，提高氧化分解能力，防止设备腐蚀和降低成本。寻找高效、可回收，适应性强的催化剂。\n","C级"]
[110,"化学工程与环境学院","含油污泥水热炭的表征及价值化研究","双向","卢姝羽","环工20-1班","2020010385","闫秀懿/2350","副教授","3","王家乐/2020010387,杜梦麒/2020010397","0825-环境科学与工程类","0825","水热处理能有效提高污泥的脱水性能并改善其燃料特性，在污泥的减量化和能源化应用方面体现出较大优势，具有良好的发展前景。水热处理含油污泥剩下的水热炭是一种固体废弃物,如何有效地利用这种固体废弃物,将是决定水热法处理含油污泥能够产业化的关键的一步。","C级"]
[111,"化学工程与环境学院","节能型二氧化碳吸附材料的制备","双向","黄超越","环工20-2班","2020010446","樊燕芳/2015880012","副教授","4","成卓/2020010447,王一达/2020010435,马欣蕊/2020010386","0825-环境科学与工程类","0825","本项目主要的研究方向为分子筛与多孔材料化学以及二氧化碳的吸附，旨在筛选材料，进行吸附剂的制备，优化材料制备工艺提高吸附材料的吸附容量，同时探索气体分子在吸附材料中的传递机理。通过老师指导与文献查询达到学习和创新的目的。","C级"]
[112,"化学工程与环境学院","柴油加氢裂化催化剂扩散性能表征","自主","张毅钰","化工20-1班","2020010572","陈振涛/2012880018","副教授","4","朱娴/2020010570,苏沿霏/2020010633,王周昊/2020010453","0813-化工与制药类","0813","受我国经济结构调整、天然气等替代燃料发展较快等因素的影响，对柴油需求增长缓慢，柴油供过于求。\n采用加氢裂化工艺将催化柴油中的双环芳烃转化为轻质芳烃 ，是解决柴油过剩和低碳芳烃短缺的理想途径。加氢裂化反应是个复杂的平行顺序反应，副反应众多，工艺条件对反应产物的影响复杂，性能优异的催化剂制备是提高轻质芳烃收率的关键。","C级"]
[113,"化学工程与环境学院","重馏分柴油溶剂脱蜡的工艺条件研究","双向","陈妮","化工20-1班","2020010635","赵亮/2323","教授","3","于佳慧/2020010601,刘余莲/2019010313","0817-轻工类","0817","在柴油产能过剩，乙烯需求量大的背景下，本项目将柴油通过分离技术，实现链烷烃与非链烷烃的分离，将蜡油做乙烯裂解料，增大乙烯产量，而剩余的脱蜡油可通过加氢生产芳烃等产品，完成从燃料到化工品的转型，可以达到柴油高值化利用的目的。在完成实验的过程中，考察脱蜡过程中脱蜡终温、剂油比、脱蜡时间等因素对分离效果的影响，并对溶剂进行初步筛选，观察所选溶剂的分离效果，从而选择最佳溶剂。","C级"]
[114,"化学工程与环境学院","金属改性沸石分子筛酸性表征研究","双向","周何昊","能化20-1班","2020010576","吴志杰/2012880001","教授","4","张智强/2020010582,秦小童/2020010505,李汉唐/2020010587","0813-化工与制药类","0813","金属改性的沸石分子筛是能源化工中应用最广泛的固体酸催化材料，在石油化工加氢裂化、加氢改质，在生物质的加氢脱氧反应中具有优异的反应性能。金属改性后，对沸石分子筛酸性影响显著，改性后的酸量、酸位置和酸类型发生显著变化。本项目在于通过化学反应滴定的方法，结合传统的程序升温脱附法和吡啶红外吸附法，建立准确测定金属改性分子筛的酸类型酸性位的数量及位置的分析新方法，针对不同沸石的孔径大小，进行分析方法的优化。","C级"]
[115,"化学工程与环境学院","常见花卉植物修复土壤石油污染效果研究","自主","赵盛旭","环科20-1班","2020010466","王新伟/1858","副教授","3","石露露/2020010473,王晓雨/2020010450","0825-环境科学与工程类","0825","花卉植物修复技术具有成本低、无二次污染、自然美观等优点，应用前景广阔。本项目研究千屈菜、柳叶马鞭草、紫菀、粉黛乱子草和虞美人等五种花卉植物治理石油污染土壤的效果。首先，通过种子萌发对中低浓度石油烃污染土壤的响应程度初步筛选对污染土壤具有潜在修复效果的植物。其次，为耐受性较强的花卉植物配置一系列浓度梯度不同的石油烃污染土壤，探究该种植物对石油污染耐受性的阈值和修复效果。","C级"]
[116,"化学工程与环境学院","空气中碳捕获","双向","郭忠纪","环科20-1班","2020010496","彭云雷/2021880031","副教授","2","魏伯轩/2020010498","0703-化学类","0703","本项目拟研究自空气中吸收二氧化碳的材料。目前已知有三种材料可达成此目的，但都有各自的问题。其中最大的问题是该材料在吸收二氧化碳时对水的吸附作用也同样明显。故本项目研究方向为对此材料进行疏水处理。在碳中和的大背景下，对二氧化碳的吸附研究具有较大的应用潜力。","C级"]
[117,"化学工程与环境学院","植物强化微生物燃料电池修复重金属污染土壤的研究","双向","蒋榆丞","环工19-1班","2019010596","王赫名/2015880013,范怡平/2079","副教授,副教授","4","赵楠/2020010457,柴启航/2020010493,火再宏/2020010460","0825-环境科学与工程类","0825","以沼生植物香蒲构建PMFC系统，常见污染物铬和镉作为研究对象，研究了AC-Fe协同PMFC对单重金属和复合重金属污染土壤的修复效果，考察PMFC系统中六价铬和镉的去除效果和系统的产电能力。与无植物对照组对比分析植物对重金属处理效果的影响，通过控制重金属的初始浓度、AC-Fe的加入以及开路和闭路的条件，分析这些因素对PMFC修复重金属污染土壤能力的影响。","C级"]
[118,"机械与储运工程学院","成品油供应链物流优化研究","双向","牛鹏涛","储运19-1班","2019015420","梁永图/1694,廖绮/2021891007","教授,无","5","刘春颖/2019011027,付广涛/2019011052,王琳/2019015612,白云翔/2021010727","0815-矿业类",{"$f":"LEFT(L119,4)","v":"0815"},"本项目基于指导老师研究课题下的子课题，涉及炼厂生产、原油成品油库存、成品油运输、成品油销售等环节的两级供应链系统。需要根据正常工况、可预测风险工况以及突发事件工况下的优化目标，综合考虑市场需求、炼厂生产、库存、运输等因素，建立数学优化模型，给出在一定周期内的炼厂交货量和交货牌号建议、库存涨降情况以及物流运输方案，以满足市场需求。","A级"]
[119,"机械与储运工程学院","蛇形管道检测机器人","自主","何清华","机器人20-1班","2020010923","刘书海/2349","教授","5","冯旭/2019010884,杨腾/2020011645,刘可涵/2021011663,周宝琳/2021010881","0802-机械类",{"$f":"LEFT(L120,4)","v":"0802"},"该机器人由数节垂直和水平方向正交的关节组成，每两个正交的关节组成一个单元体，每个单元体可相当于一个万向节，可以模拟蛇的游动、蠕动、侧移等多种运动方式，关节由总线舵机提供动力，通过对舵机传感器的参数读取，获取机器人各个关节角度，从而计算出机器人的姿态。\n机器人由头部集成了图传模块、imu等传感器，以获取姿态信息，通过有线和无线双模的方式进行控制，可以在较远距离，较复杂的环境中获取到图像信息。\n","A级"]
[120,"机械与储运工程学院","基于供气可靠性的管道压缩机维护周期优化方法研究","双向","魏祎晨","储运20-1班","2020010931","苏怀/2021880014","副教授","3","杨彬/2020011025,蔡苗菀/2020010998","0805-能源动力类",{"$f":"LEFT(L121,4)","v":"0805"},"选择分布模型描述压缩机退化过程，定量计算渝送安单元瞬时失效概率；分析单元拓扑特性和系统呈实验动力学特性，探究单元状态演化规律；考虑单元状态随机性和需求不确定性，计算管网最大供气能力；以系统可靠性最高、维护成本最小为日坛，选择优化算法对优化问题进行求解。","A级"]
[121,"机械与储运工程学院","面向复杂环境、具有良好运动能力的软体机器人","自主","殷睿琪","机械20-2班","2020010764","肖华平/2014880065","副教授","3","高俊涛/2020010803,薛淼/2020010742","0802-机械类",{"$f":"LEFT(L122,4)","v":"0802"},"本项目针对现有爬行机器人在严苛运动环境（诸如油污环境、潮湿环境、干湿交替环境）以及复杂外界干扰状态下（诸如强大电磁干扰、辐射干扰等）爬行能力差的缺陷，通过仿生软体无肢动物，利用合理的摩擦学设计方案，设计一种在复杂严苛条件下的具有出色运动能力及灵活性的软体机器人。在此基础之上，探索其集成化可行性，进一步推动软体机器人的实际应用。","A级"]
[122,"机械与储运工程学院","多射击机器协同机场驱鸟系统","自主","张博宇","机械类21-2班","2021010811","王文明/2011880026","副教授","5","高飞扬/2021010833,唐朝/2020011636,李之雄/2021010948,李阳/2021010956","0802-机械类",{"$f":"LEFT(L123,4)","v":"0802"},"该项目将多射击机器协同的创新技术引入机场驱鸟的传统研究领域,主要对多射击机器协同机场驱鸟的方法与技术进行了研究；进行的主要工作如下：基于机场对于新型人工智能驱鸟系统的需求,我们设计了多射击机器协同机场驱鸟系统,并从模型化、硬件构成和算法流程三个方面介绍了系统的工作原理、任务目标和运行步骤。","A级"]
[123,"机械与储运工程学院","面向过程装备典型系统的工业物联网技术及运用研究","自主","瞿友靖","机械类21-7班","2021010973","朱建军/2019880013,高雪/2021911007","讲师,无","4","李进华/2021010961,林铮/2021010967,丁英蕙/2021010944","0802-机械类",{"$f":"LEFT(L124,4)","v":"0802"},"基于工业Raspberry Pi工控机和Node-red开发系统，搭建过程装备系统典型信号数据采集和实时监控系统，并结合机器学习典型算法，开展工业级数据采样和动态分析。通过研究过程装备典型系统，加以运用现代物联网技术，实现过程装备控制自动化及智能化。","A级"]
[124,"机械与储运工程学院","绿氢先驱——光伏制氢恒温热水系统","自主","白羽萌","能动20-1班","2020010262","王吉/2018880020","讲师","5","黄烨东/2020010810,梁昊/2020012143,何享/2020010781,丁柔/2019011638","0802-机械类",{"$f":"LEFT(L125,4)","v":"0802"},"市面上现有耦合光伏发电和电解水制氢的技术存在供电不稳定、供热高耗能和温控难度大等问题。为解决这些问题，本团队设计了光伏制氢恒温热水系统，以实现变工况太阳能光伏电解水制氢系统的稳定热控。恒温热水系统样机测试效果良好，调控精度较高;调控响应时间相对较短。自反馈电动调节阀能实现不同流量冷热水源的混合，使混合水温度在电解槽最佳工作温度范围内，可提高光伏制氢系统的效率和安全性，具有广阔的市场前景。","A级"]
[125,"机械与储运工程学院","一种新型水下流致振动能量采集装置设计","双向","何登峰","能动20-2班","2020010715","孙旭/2013880070","副教授","4","周寰宇/2020011230,苗家瑞/2020010792,杨广宁/2020011204","0802-机械类",{"$f":"LEFT(L126,4)","v":"0802"},"自然界中水流流动蕴含着大量能量，现有的水下能量收集技术存在转化效率低、能量收集性能差、材料使用寿命短等问题，在前期理论研究基础上，对一种新型水下流致振动能量采集装置进行初步设计。首先，基于已有理论模型，设计可在水流作用下自发振动机械结构，将流体动能转化为结构机械能。然后，进行电路设计，利用压电/电磁感应效应将结构机械能转变为电能，实现水流能量的采集和转化。基于此方案对装置原型进设计和制造。","B级"]
[126,"机械与储运工程学院","天然气管网系统安全域的初探","双向","蒋士博","储运20-1班","2020010935","苏怀/2021880014","讲师","4","胡晶晶/2020010936,杨韧/2020010968,王振宇/2020010947","0805-能源动力类",{"$f":"LEFT(L127,4)","v":"0805"},"本项目旨在研究天然气管网系统的安全域分析方法。通过建立可以描述安全状态的天然气管网安全域的模型，同时辅以计算机方法得到所有临界安全工作点进而得到安全边界，用可视化方法对其进行研究与分析，进行动态仿真，可为决策整个天然气管网提供依据。","B级"]
[127,"机械与储运工程学院","高压储氢罐质量检测方法","双向","杨溢","能动20-1班","2020010833","李岩/2015880011","副教授","3","秦柯禹/2019010926,周骏琦/2020010842","0805-能源动力类",{"$f":"LEFT(L128,4)","v":"0805"},"高压储氢罐质量检测是目前氢能利用中亟待解决的一个关键难题，目前常规的无损检测方法达不到高压储氢罐的要求。本项目拟开发一种声波检测技术，对储氢罐材料破坏进行实时在线检测，为其安全利用提供保障。本科生三人组队已与老师取得联系。","B级"]
[128,"机械与储运工程学院","废弃塑料资源化利用技术开发","双向","刘恒祥","过程19-1班","2019010922","李岩/2015880011","副教授","2","王光照/2019010948","0802-机械类",{"$f":"LEFT(L129,4)","v":"0802"},"在本课题指导下，开发一套加热装置，将废弃的塑料瓶（如可口可乐、百事可乐）熔融成丝状材料，作为3D打印的原材料。研究加热功率对成丝质量的影响，分析不同材质的塑料瓶成形特点。这与当下保护环境的大背景不谋而和。","B级"]
[129,"机械与储运工程学院","天然气管网系统安全预警与调控现状调研","双向","徐寒露","储运20-1班","2020011440","苏怀/2021880014","讲师","3","高天青/2020011008,赵冰珂/2020011003","0818-交通运输类","0818","以全球各国的各级天然气管网系统为例，对其天然气管网系统的安全预警、调控的指标、方法、发展进程进行调研，通过文献阅读、资料查阅等方式，对不同评价指标、建模方法、产品化程度进行归纳总结，较为深入理解背后的数学知识与建模理论，在步入研究生工作前夯实理论基础。","B级"]
[130,"机械与储运工程学院","管道状态检测试验架设计和试验研究","双向","李浦","储运20-1班","2020011376","张宏/0090,刘啸奔/2018880019","教授,副教授","3","邵佳/2020011370,付孟楷/2020011027","0802-机械类","0802","为准确掌握管道服役状态，需要开展基础性的检测试验研究。设计含不同缺陷、应力应变大小等服役状态的小尺寸管道综合检测试验装置，构建合理的试验方案，对比小尺寸管道检测试验数据与真实管道服役状态之间的差异，验证管道服役状态检测方法合理及准确性，对工程实际中管道服役状态的检测提供指导建议。调研目前国内外针对结构响应的试验装置和试验方法，设计可实现不同约束与载荷条件的管道结构响应试验台架，设计合理的试验方案。","B级"]
[131,"机械与储运工程学院","基于惯性制导检测（IMU）的管道弯曲应变数据分析和管道缺陷几何特征识智能别研究","双向","张清爽","储运21-2班","2021010711","刘啸奔/2018880019","副教授","3","黄洋/2021010679,苏奕静/2021010684","0802-机械类","0802","利用提供的管道变形段应变数据，可以分析不同应变较大异常管段的机器学习算法。与现有的位移检测技术相比，IMU内检测可以全线逐点检测管道的弯曲应变和位移，对管道的弯曲应变和位移监测更加全面和精确。多次重复进行IMU内检测可以监测管道位移变化和变化率，及时报告管道位移变化较大的缺陷点和管道位移变化较快的点，从而对管道应变进行有效的监测和预警，便于及时主动维修管道缺陷点和排除导致管道位移的环境因素。","B级"]
[132,"机械与储运工程学院","球类的快速拾取与精准发射","自主","夏冬华","机械类21-5班","2021010889","吴世德/1486","副教授","5","易昊男/2020010689,周鸣阳/2020010919,潘亚豪/2021010839,朱祎珩/2020010845","0802-机械类","0802","球类，考验精准度的运动，足球、排球，篮球······，在观看球类比赛的同时，我们常惊叹于球员们一次次精准的命中。那么具有更高可靠性与高效性的机械结构是否也能做到这些，甚至超越，成为球员们的陪练呢？基于此种情况，我团队决定开展这个项目，设计一种集快速拾取与发射球类的机械，满足球员们对于训练的需要。","B级"]
[133,"机械与储运工程学院","扁平焰燃烧器的流场特性与CFD仿真","双向","梁博文","过程20-2班","2020010850","王娟/2087","副教授","5","贾茜/2020010831,冯熙常/2020010837,刘佳琪/2020010832,李佳宁/2020010898","0805-能源动力类","0805","选取焦化或裂解工艺中的一种典型的扁平焰燃烧器，通过查阅大量文献，了解该类燃烧器的流场特点，分析当前设计的不足，根据查阅的文献结果，结合所学专业知识，对该燃烧器结构进行优化，获得更加合理的流场分布，为工业应用提供思路。\n","B级"]
[134,"机械与储运工程学院","蓝天行动-烟气脱硫脱硝净化工艺与反应器系统优化","自主","彭康见","机械类21-7班","2021010972","张玉明/2013880044","副教授","3","李卓然/2021010945,于皓添/2021010957","0802-机械类","0802","调研烟气污染现状以及脱硫脱硝典型工艺流程及其相应的反应器形式;依托工程项目进行脱硫脱硝过程开展工艺衡算以及技术分析;利用三维建模软件构建脱硫脱硝反应器并进行初步的流场模拟计算;掌握烟气脱硫脱硝处理净化工艺;掌握典型工艺流程并能够进行衡算;学会模拟软件并能够进行初步反应器建模与模拟。","B级"]
[135,"机械与储运工程学院","基于麦克纳姆轮的全地形网球发射机器人","自主","潘伟骁","机器人20-1班","2020010851","朱霄霄/2014880058","副教授","4","李畅/2021010818,秦胜杰/2021010870,王坤/2020011596","0802-机械类","0802","本项目是基于基于麦克纳姆轮制作的全地形网球发射机器人，具有地形适应性强，移动速度快，发射精度高的特点，可以通过无线远程控制实现全地形移动，射程高达20m以上，可以实现20m内精准发射到任意点的功能，可以取代人力进行网球接打的训练，具有良好的稳定性。","B级"]
[136,"机械与储运工程学院","基于无人机的自动化播种系统","自主","陈致帆","机械类21-5班","2021010899","岳元龙/2014880037","工程师","5","刘天汉/2021011679,奉择安/2020010725,赵晗/2020010822,李琪琪/2021011728","0802-机械类","0802","利用现代互联网技术，将无人机技术和农田的管理紧密结合，以便在复杂、不规则的农田地貌进行播种。该系统具有耗时短、操作简单和工作效率高等突出优点。\n该项目主要利用无人机遥感、视觉处理、卫星定位等多项关键性技术，并在机械结构上进行优化，最大限度降低飞行成本，和无人机使用耐久度。\n设计该系统的目的在于最大限度解放生产力，降低作业成本。","B级"]
[137,"机械与储运工程学院","微纳米气泡特性与净水效果关系实验研究","双向","丁仍森","机械类21-7班","2021010953","陈建义/2297","教授","3","白景瑞/2021010962,彰子琦/2021010958","0802-机械类","0802","微纳米气泡特性与净水效果关系实验研究\n依托国家重点研发计划项目，调研国内外常见的气浮净水装 了解\n置气泡发生器的结构和原理；改变气泡直径和悬浮物直径，气泡测量气浮出水悬浮物的粒径分布；分析粒径分布，确定处理水实不同悬浮物时最佳的气泡直径。","B级"]
[138,"机械与储运工程学院","一种适用于物流搬运的机器人","自主","刘瑞祺","机械20-1班","2020010859","吴世德/1486","副教授","5","王大善/2020010793,高垚/2020010906,刘军豪/2020011560,王鹏飞/2021010874","0802-机械类","0802","研究内容:研究目前物流搬运机器人所需功能，提出一种抓取搬运方案，并设计一款可用于物流运输的机器人。\n项目特色:吸盘抓取，方便快捷；可自由控制高度，大面积的夹取范围，灵活调整物块姿态；自带微型气泵，可无线控制。\n拟解决的问题:1、如何设计吸盘参数。2、如何避免物件搬运过程中发生的掉落现象。","B级"]
[139,"机械与储运工程学院","天然气放空火炬的设计与3D建模","双向","杨雨浩","机械类21-5班","2021010883","王娟/2087","副教授","3","白骏辉/2020010980,洪璇/2021010901","0802-机械类","0802","项目简介：调研现有天然气放空火炬的结构及其特点，设计旋流式火炬燃烧器，采用SolidWorks软件进行三维建模，对其形成的燃烧火焰情况进行分析，确定优化结构。\n放空火炬系统主要包括:火炬头、火炬筒体(包括爬梯及检修平台)、钢丝拉撑、地面阀组、工艺管线、引火筒燃烧器、高空点火装置、手动外传火点火装置、就地控制箱(防爆)、远程控制箱、火焰检测装置、仪器仪表、界区内电缆、保护管及安装支架等组成。","B级"]
[140,"机械与储运工程学院","海底管道和海底电缆监测和防冲刷技术研究","双向","王成","储运20-3班","2020011013","陈严飞/2401","副教授","5","孙浩洋/2020011012,彭进/2020011011,刘亚/2020011002,方可心/2020011001","0802-机械类","0802","1. 海底管道监测技术：部分海管服役海水深度超过 100 m，导致对其进行内腐蚀监测的难度相比陆地埋地管道大很多。对管线进行全覆盖监测技术手段很匮乏2.海底电缆监测技术：海底电缆结构比较复杂, 敷设在海底后所处的环境特殊, 一旦发生故障, 其修复难度及造成的损失都较大。3.海底管道防冲刷技术：海底管道因冲刷悬空非常普遍冲刷露管后不但导致输油热损失增大而且严重影响管道的安全运行4.海底电缆防冲刷技术","C级"]
[141,"机械与储运工程学院","油气管道振动分析和控制技术研究","双向","谭克扬","储运20-1班","2020010939","陈严飞/2401","副教授","5","喻航/2020010945,李睿/2020010956,胡小萌/2020010934,刘畅/2020010950","1207-工业工程类","1207","油气管道振动分析和控制技术研究 \n1. 管道声致振动分析；2. 管道流致振动分析; 3.管道机械激励分析；4. 管道水锤志技术分析；5.管道振动控制技术\n通过研究，通过创新，来解决管道振动的实际问题。","C级"]
[142,"机械与储运工程学院","基于Simdroid天然气站场管系振动分析APP开发","双向","赵雨阳","储运20-2班","2020010979","刘啸奔/2018880019","副教授","3","刘丹妮/2020010059,滕忠算子/2020010962","0802-机械类","0802","以某一天然气站场管系实际振动情况为例，通过Simdroid有限元仿真软件，建立站场振动管系数值仿真模型，对其进行振动响应分析并开发用于站场振动分析APP。最后对比仿真模拟软件计算的管系振动结果与真实天然气站场管系振动情况之间的差异，提出抑制工程实际中天然气站场管系振动的相关建议。","C级"]
[143,"机械与储运工程学院","智慧管网成熟度评价模型运用与分析","双向","曾凡杰","储运20-3班","2020011018","史博会/2013880073","副教授","2","张子悦/2020010929","0805-能源动力类","0805","智慧管网作为国家管网的建设发展趋势，需要对智慧管网发展情况进行评价，其中成熟度评价是一种常用的评价手段。本项目拟在调研成熟度评价模型在智慧城市等其他行业的应用情况的基础上，将成熟度评价方法引入到智慧管网评价中，确定各评价维度与评价指标，建立智慧管网成熟度模型，结合智慧管网的典型特征开展成熟度评价的计算分析，给出成熟度量化标准及定义。","C级"]
[144,"机械与储运工程学院","智能储油库特征分析与评价","双向","谢雨圻","储运21-1班","2021010654","宫敬/1552","教授","3","陈宣衡/2021010670,朱琪/2021010993","0815-矿业类","0815","目前，国内储油库智慧化水平普遍较低，企业对其认识比较片面，标准也参差不齐，然而作为油品储存和运输的中间环节，油库的安全、高效运行是国内外经济稳定发展的重要保证。智慧型油库则呈现出高度智能化、共享信息化的特征，在前端能够做到智能感知和洞察，在后端能够实现智能分析和建议。","C级"]
[145,"机械与储运工程学院","智能储气库特征分析与评价","双向","马英伦","储运21-1班","2021010663","宫敬/1552","教授","2","崔航博/2021010666","0815-矿业类","0815","调研和梳理储气库的典型业务特征，并通过调研其他行业智能化的特征以及国家官网集团对智慧管网建设的需求和需要，确定智能储气库应具备的特征。同时，从运行维护、安全保障、可靠性等方面建立评价其智能化程度的体系。","C级"]
[146,"机械与储运工程学院","机械化智能在疫情背景下的典型应用示范","自主","汤学龙","机械类21-4班","2021010871","吴世德/1486","副教授","3","龚志鹏/2021010854,孙博文/2021010952","0802-机械类","0802","在疫情爆发的大背景下，出门买菜，买一些急用的生活物资变得十分困难。很多时候需要大量的志愿者挨家挨户运送，这样不仅耗时耗力，而且在一定程度上增加了疫情扩散的风险。但是我们可以用机械去代替人力，将物资集中分布，由户主的主要，让户主自动控制机械去取相应物资。这样可以大大减少疫情扩散的风险，而且所需要的投入远远小于人力运送。","C级"]
[147,"机械与储运工程学院","旋风分离器排气管插入深度对分离器效率的影响机制","自主","王党政","机械类21-8班","2021011003","张炜/2020880021","讲师","4","秦孜艺/2020010866,徐嘉宁/2021011005,杨思敏/2020010865","0802-机械类","0802","使用开源场处理工具包OpenFOAM编写数值求解器，并建立旋风分离器三维数值模型，针对不同排气管插入深度进行数值模拟，获得颗粒的分离效率。\n通过分析不同颗粒粒径分布、排气管插入分布等条件下的流速分布、不同粒径颗粒的运动路径等，揭示颗粒的逃逸路径，阐明排气管插入深度对分离效率的影响，建立排气管插入深度与颗粒分离效率的联系，并提出最佳排气管插入深度的预测方法。\n本项目预期成果发表论文一篇。","C级"]
[148,"机械与储运工程学院","站场管道内检测机器人调研","双向","田建凯","储运21-2班","2021010706","刘啸奔/2018880019","副教授","4","王中琦/2021010708,李子祎/2021010687,李昊宸/2021010902","0802-机械类","0802","调研目前站场管道机器人技术发展现状和面临的技术难点，调研各行业先进机器人前沿技术，寻找可运用于站场管道检测的相似和可借鉴机器人技术。掌握目前站场管道检测技术发展现状和面临的主要技术难点。针对这些问题，调研并总结站场检测技术的特点。","C级"]
[149,"机械与储运工程学院","组合式扁平状喷射系统的设计与3D建模","自主","边瑀梦","机械类21-6班","2021010911","王娟/2087","副教授","3","陈怡如/2021010780,王帅/2021010941","0802-机械类","0802","调研现有扁平状射流系统的结构及其特点，设计组合式扁平状喷射系统，采用SolidWorks软件进行三维建模，对其形成的扁平状射流情况进行分析，确定优化结构。Solidworks软件功能强大，组件繁多。 Solidworks有功能强大、易学易用和技术创新三大特点，SolidWorks 能够提供不同的设计方案、减少设计过程中的错误以及提高产品质量。","C级"]
[150,"机械与储运工程学院","阵列式圆形喷射系统的设计与3D建模","双向","李一博","机械类21-6班","2021010937","王娟/2087","副教授","3","徐鑫/2021010920,王鸣/2021010922","0802-机械类","0802","      调研现有气体分布系统的结构及其特点，设计阵列式喷射系统，采用SolidWorks软件进行三维建模，对其组合射流情况进行分析，确定优化结构。                                                                               ","C级"]
[151,"机械与储运工程学院","面向双碳目标的生物质洁净转化利用基础研究","自主","刘树强","机械类21-6班","2021010926","张玉明/2013880044","副教授","4","杨晨/2021010927,陈晓林/2021010928,陶安腾/2020010925","0802-机械类","0802","该项目研究内容为调研国内典型的农林类生物质分布、类型与总量等数据；认识木屑、秸秆、果壳等典型生物质的组成结构特性及其利用方式；生物质热解﹣气化多联产制备油气﹣焦炭调控技术研究，收集并分析产物分布及其结构特性。","C级"]
[152,"机械与储运工程学院","基于高速度差原理的原型射流燃烧器设计与CFD仿真","双向","赵文浩","过程20-1班","2020010895","王娟/2087","副教授","3","万国权/2020010870,倪风朝/2020010779","1207-工业工程类","1207","查阅文献，详细了解圆形射流燃烧器工作原理，分析这类燃烧器的流场流动特点和目前市场上较为普及的燃烧器所存在的不足。并根据查阅的文献，结合所学专业知识，对圆形射流燃烧器进行设计和优化，尽可能地弥补其设计的不足之处，为工业应用提供新的思路。","C级"]
[153,"机械与储运工程学院","基于SOLIDWORKS的装备设计","双向","董科","过程20-3班","2020010922","宋健斐/2270","副教授","4","马凯峰/2021010923,杨乐/2021010921,谷晨阳/2021010918","0802-机械类","0802","通过学习，掌握SOLIDWORK软件的使用，了解典型装备的工作原理，使用SOLIDWORKS 软件完成过程装备的设计，并通过软件分析模拟设备运行使用情况。通过三维图纸的绘制进一步熟悉过程装备的结构及工作原理，学习如何设计标准的过程装备。","C级"]
[154,"机械与储运工程学院","液氨管道输送工艺调研及模拟分析","双向","崔庭瑄","储运21-3班","2021010733","史博会/2013880073","副教授","4","霍振涛/2021010734,曹博涵/2021010728,梁金雨/2021010731","0815-矿业类","0815","在国家双碳目标的大背景下，清洁能源的运输工程的重要性尤为突出。新能源氢气输送形式具有多元化的特征，其中，将氢气合成液氨通过管道输送的方式已被国外相关行业得以应用，因此，本项目你开展新能源氢气的管道输送的工艺模拟分析研究，以调研国内外液氨管道输送的工艺特点为基础，学习并使用sps结合其典型物性特征开展初步模拟分析。这项工作将为氢能的储运与利用奠定一定的前期研究基础，为实现双碳目标发挥一定的作用。\n","C级"]
[155,"机械与储运工程学院","输氢管道完整性管理技术研究","双向","沈亚洲","储运20-1班","2020010960","陈严飞/2401","副教授","5","庄奕轩/2020010961,蔡牧原/2020010958,美尔班·哈赛/2020010957,宋宇辉/2021010730","0802-机械类","0802","氢气输送管道完整性管理方法缺失问题。当管内介质变为氢气后，管道完整性管理中的风险评估，完整性评价两部分会产生变化，此外还需对管道进行可靠性分析。应着眼于氢气与天然气性质的差异，尽快制定氢气输送管道完整性管理体系。","C级"]
[156,"机械与储运工程学院","基于机器学习的混输原油管道流动保障技术","双向","刘奇","储运21-1班","2021010668","苏怀/2021880014","讲师","4","于小芊/2021010656,张诗曼/2021010648,张宇琦/2021010662","0815-矿业类","0815","原油的凝点和黏度间存在隐含的机理关系，前人的研究多基于数据统计来拟合模型并加以修正，而机理模型的研究难度大。从拟合的思想出发，基于机器学习算法建立混合原油凝点的预测模型。\n需要了解机器学习的大致流程，掌握至少一项编程语言python、matlab等；建立并比选出适用于拟合凝点-黏度关系的模型；改进模型，挖掘历史数据的时序关系（RNN）或拓扑结构关系（GNN），增强模型可解释性。\n","C级"]
[157,"机械与储运工程学院","疫情卫士--一种全地形适应的消毒机器人","自主","徐扬","机械类21-2班","2021010809","吴世德/1486","副教授","5","张峻辉/2021010875,董科/2020010922,王德优/2020010926,何航/2020010853","0802-机械类","0802","我们的步兵设计方案是由需求出发而进行的，全车基本采用 2D 雕刻以及车&铣加工而成的玻纤板、碳纤板、铝加工件为元件，同时，在受力不大的地方我们使用3D打印光固化，既减轻重量，还美观。该机器人底盘用来全地形移动，全地形适应，发射机构可以用来喷洒消毒液，同时还可以视觉识别各区域的消毒液喷洒状况。","C级"]
[158,"机械与储运工程学院","LNG冷能利用液化CO2模拟分析研究","自主","仲华伟","储运21-3班","2021010722","史博会/2013880073","副教授","4","廖顺/2021010725,唐艺丹/2021010646,吴贝尔/2021010724","0815-矿业类","0815","在国家双碳目标背景下，CO2的捕集、利用与封存备受关注。如能将LNG冷能用于捕集提纯的CO2的液化，并以管道输送液态的CO2至其利用与封存地，将是一种较为高效的方式。为此，本项目拟开展LNG冷能利用液化CO2模拟分析研究，为其工业化应用提供技术与理论支撑。","C级"]
[159,"经济管理学院","碳中和目标下国际甲烷减排联盟的经验对中国油气行业甲烷减排的启示","自主","刘家庆","金融20-1班","2020011965","王建良/2014880025","副教授","3","陈彦磊/2020011964,李小溪/2020011979","1201-管理科学与工程类","1201","为了在学术与理论层面更清晰地把握当前中国油气行业甲烷排控问题，开拓对前辈学者在该领域论述的一个全新视角，本项目致力于分析梳理至今为止已有的国际性甲烷减排计划与油气行业内自发成立的减排联盟组织的发展经验，以期能够发现国内类似联盟建设的参考依据。","A级"]
[160,"经济管理学院","新消费背景下汤臣倍健的增长策略研究","双向","孙予诺","营销20-1班","2020012042","张海霞/1615","副教授","5","甄熙/2020012050,韩银银/2020012051,刘逊儿/2020012049,郑奕/2020012160","1202-工商管理类","1202","1.新消费对保健品需求的影响；2.保健品行业发展分析；3.汤臣倍健的发展战略、商业模式、营销策略分析；4.近五年汤臣倍健经营绩效、品牌价值、市场增长状况分析；5.目前企业增长存在的问题分析；6.增长策略方案。","B级"]
[161,"经济管理学院","基于知识图谱的自动问答研究","双向","陈楚昕","能经20-1班","2020011908","李明/2427,李贺平/2017880003","教授,讲师","2","肖婧雯/2020012065","1201-管理科学与工程类","1201","知识图谱（Knowledge Graph），在图书情报界称为知识域可视化或知识领域映射地图，是显示知识发展进程与结构关系的一系列各种不同的图形，用可视化技术描述知识资源及其载体，挖掘、分析、构建、绘制和显示知识及它们之间的相互联系。本项目将构建一个知识图谱，并基于此搭建一套自动问答系统。\n","B级"]
[162,"经济管理学院","可再生能源电力配额制的实施效果及优化策略分析","双向","王佳艺","能经20-1班","2020011061","赵晓丽/2014880063","教授","5","赵玲/2020011916,肖莎/2020011917,汪羽莹/2020011961,蔡瑶/2019011803","0201-经济学类","0201","研究中国以及其他国家可再生能源电力配额制实施以来对可再生能源发电增长的作用效果，探析影响可再生能源电力配额制实施效果的关键要素，确定使中国可再生能源电力配额制进一步完善的策略，为“去补贴”背景下如何通过配额制的实施促进中国能源系统的低碳转型发展提供决策参考。\n","B级"]
[163,"经济管理学院","双碳背景下环境规制政策双管齐下对企业绿色技术创新的影响研究  ","双向","刘庭威","会计19-2班","2019012161","王珮/2025","教授","5","任雪/2019012082,刘怡男/2019012099,祁海博/2020012088,张媛媛/2020012044","0201-经济学类","0201","在双碳目标的背景下，基于波特假说理论，利用中国省级面板数据，建立计量模型，检验环境保护税和碳排放权交易制度两种环境规制政策组合对企业绿色技术创新是否存在协同效应，同时本研究还将根据环保意识强度和知识产权保护力度进行地区异质性分析。","B级"]
[164,"经济管理学院","比亚迪双碳竞争力对标研究","双向","朱千瑞","财务19-1班","2019010043","张海霞/1615","副教授","3","王春蕾/2019012108,纪一然/2019012106","1202-工商管理类","1202","碳中和所带来的不仅仅是能源结构的变化，更是中国经济社会发展模式的全面转型，对整个生产方式产生颠覆性的影响，同时也将改变我们的生活方式，这将从供需两侧同时影响企业的发展。中国企业在国际竞争中立于不败之地，不仅需要在商业影响力、业务版图等方面与海外巨头对标，更需要在“双碳”目标的达成上，与国际优秀企业看齐。","B级"]
[165,"经济管理学院","基于文本挖掘的政府绿色采购政策效果研究——以北京市为例","自主","蔡旻含","能经20-1班","2020011924","冯连勇/1973","教授","2","王晓彤/2020011927","0201-经济学类","0201","近年来，政府采购作为刺激环境质量提升的重要手段之一受到广泛关注。本文以北京市政府采购数据为例，采用TOPSIS法构建环境污染指标，借助三类计量模型，对数据和VAR模型进行检验。探究发现了北京市的政府采购规模与环境质量改善之间的相关性不显著。\n又利用文本挖掘技术，对北京市政府采购中标公告中的数据进行采集，构建出专业词典，并构建词云。最后为我国未来改进与完善绿色政府采购提出建议参考。","B级"]
[166,"经济管理学院","基于文本挖掘的经典影视短评情感分析","自主","刘燕敏","信管21-1班","2021012070","李明/2427","教授","3","龚文欣/2021012100,王净文清/2021012096","1201-管理科学与工程类","1201","本研究通过使用网页数据采集工具对经典国产电视剧的豆瓣短评进行抓取，进而使用内容挖掘工具进行词频统计并结合共现分析和情感分析，从而发现电视观众的深层观影特征以及评论关键等有价值的信息，提供有关电视正面或负面的受众反馈，为国产电视剧产业未来的发展提供新思路。","B级"]
[167,"经济管理学院","北京证券交易所对促进中小企业缓解融资问题的作用研究","自主","许嘉兴","金融20-1班","2020011974","高立/2017880027","副教授","5","彭琴瑶/2020011950,徐海泽/2020011988,谢茜茹/2020011949,吉志豪/2020011968","0203-金融学类","0203","2021年11月北京证券交易所开市，对国内股市及上交所、深交所产生多重影响，项目依据北交所为缓解创新型中小企业融资问题、降低上市门槛的设立目的，瞄准国内上市公司，从三个角度分别对三大证券交易所上市公司、新上市中小型企业在北交所开市前后的变化进行对比，对北交所的多重影响作出定性结论与量化分析。","B级"]
[168,"经济管理学院","服务化赋能厨房电器制造业低碳创新绩效研究","自主","罗嘉骊","信管20-1班","2020011981","唐旭/2011880029","教授","1",null,"1201-管理科学与工程类","1201","低碳倡导下，厨房电器制造业利用强大的产品专业技术，延展制造业务至服务领域，面向后市场提供差异性的服务是未来该产业发展的可取之处。本课题以厨房电器制造业为观察对象，厘清服务化与低碳创新之间的关系，拟实现企业的更大价值创造，助力国家“双碳”特点行业的目标实现；服务化赋能下厨房电器制造业低碳创新效果的度量，打破了低碳创新的实施仅增加成本的局限性，旨在证明“双碳”践行过程亦可实现企业的价值创造。\n ","C级"]
[169,"经济管理学院","车用润滑油生态足迹计算及其驱动因素研究","双向","孙悦","营销20-1班","2020010118","孙仁金/0683","教授","4","贺美/2019011985,刘子越/2020011110,郭敬薇/2020011918","0204-经济与贸易类","0204","本文首先以车用润滑油实际资源消耗的基础上，引入改进后的生态足迹评价模型，计算车用润滑油的生态足迹；然后采用偏最小二乘回归（PLS）方法对车用润滑油的生态足迹影响因素进行分解，以找到主导影响因素；最后探讨消减车用润滑油生态足迹的建议。","C级"]
[170,"经济管理学院","中国石油大学（北京）生态足迹计算及驱动因素研究","自主","贺美","能经19-1班","2019011985","孙仁金/0683","教授","2","孙悦/2020010118","0201-经济学类","0201","本文首先以中国石油大学（北京）为研究对象，在调查2020~2021学年中国石油大学（北京）实际资源消耗的基础上，引入改进后的生态足迹评价模型，计算师生活动的生态足迹，主要包括食物、能源、污水处理和交通，以评估这些活动对生态环境造成的影响；然后采用LMDI指数分解方法对中国石油大学（北京）生态足迹影响因素进行分解，以找到主导影响因素；最后探讨消减生态足迹的建议。","C级"]
[171,"经济管理学院","基于文本挖掘的慕课课程评论研究","自主","王天啸","信管21-1班","2021012081","李明/2427","教授","4","王奕涵/2021012082,辛荣慧/2021012080,高慕彤/2021012085","1201-管理科学与工程类","1201","由于当前高校对慕课应用非常广泛，运用文本爬取、分析、挖掘等技术对于慕课课程的评论与其对应学科、课程的关系进行分析研究，进而希望得到一种对慕课课程种类、结构、课程内容等进行优化的算法或者技术，从而改善搞笑学生学习情况","C级"]
[172,"经济管理学院","在线音频APP用户对健康养生栏目评论的主题挖掘和情感分析","自主","黄晓莉","信管21-2班","2021012101","李明/2427","教授","3","刘宇晴/2021012102,唐国庆/2021012105","1201-管理科学与工程类","1201","运用爬虫、可视化等技术方法，对在线音频APP健康养生栏目的用户评论进行信息爬取、主题挖掘，找到用户评论主题的共性和个体差异，分析用户对健康养生栏目的情感态度。一方面，能够为运营商设置养生栏目提供可行的建议，更好地为用户服务；另一方面，也能够在一定程度上体现人们通过在线音频APP对健康与养生的关注，为想要通过在线音频APP关注健康养生的人们提供参考以供选择，也为养生行业的发展提出一些建议。\n","C级"]
[173,"经济管理学院","上市公司环保投资、低碳经济与高管自利","自主","黄嘉豪","财务19-1班","2019012090","张龙天/2017880016","讲师","4","杨孜宇/2020011970,刘咏璇/2020012040,要雅琪/2021011991","1202-工商管理类","1202","2022年两会中《政府工作报告》要求有序推进碳达峰碳中和工作，加快形成绿色低碳生产生活方式。本项目主题为上市公司低碳经济，探讨企业宏观层面的制度环境与微观层面的高管自利行为对上市公司环保行为的影响，并据此从企业自身与宏观层面为推进上市公司响应双碳目标提供建议。","C级"]
[174,"经济管理学院","北京分布式可再生能源发展潜力及策略","自主","翟志瑜","金融20-1班","2020011942","孙仁金/0683","教授","4","陈秋如/2019011938,倪好/2019012145,陈秀川/2020011958","0201-经济学类","0201","在“双碳目标”的引导下，能源结构转型已成为大势所趋，由于地理条件的限制，集中式的可再生能源项目难以在城市展开，类似智慧微网、分布式光伏发电等分布式的新能源产业则更适合在城市中发展。本文以北京为例，获取近几年北京分布式可再生能源的相关数据，建立综合评价体系，评估分布式可再生能源的现状；采用SWOT法分析北京分布式可再生能源发展的优势与弊端；最后提出解决弊端的策略以及发展规划。","C级"]
[175,"经济管理学院","影评数据分析与可视化","自主","万琦辰","信管21-1班","2021012073","李明/2427","教授","3","石赛男/2021012071,张晨曦/2021012068","1201-管理科学与工程类","1201","随着电影业的发展，越来越多的人投身于电影业，但大热电影只有那么几部，所以我们决定分析热榜电影下的评论，找出观众更注重电影的哪些维度，例如明星，剧情，电影质感等。经过每个月的数据更新后，把这些影评数据可视化，最后提出一些具有可行性的电影发展方面的建议。","C级"]
[176,"经济管理学院","对短视频与评论大数据进行分析与挖掘","双向","郭嘉诚","信管20-1班","2020011937","李明/2427","教授","4","李昊朕/2020010808,周思维/2020010186,孙小涵/2020011954","1201-管理科学与工程类","1201","     短视频是移动互联网时代的重要媒介，深刻嵌入人们的日常生活。短视频使用户可以利用闲散的时间和注意力以及可移动的空间进行传播，短视频传播呈现典型的碎片化特征，传播速度更快、范围更广\n     面对这样一个新兴事物，本项目将通过多维度进行研究、挖掘短视频与评论的特征，并对其进行可视化；在实证研究中，通过编写python脚本，采集短视频客户端的数据进行建模分析，挖掘出有价值的信息。","C级"]
[177,"理学院","无人机集群任务分配优化算法在石油多钢管道裂痕成像、定位的应用","自主","张筱娴","统计20-1班","2020011806","杨振清/2189","高级工程师","4","陈一豪/2020010787,田津铭/2020011807,曹靖/2020010756","0701-数学类","0701","针对石油行业中钢管裂痕，运用无人机集群分配技术进行裂痕成像以及3D位置定位的应用，协助人们了解钢管损伤情况，以便及时进行修复。本项目基于无人集群系统仿真与开发平台，研究主流的集中式任务分配算法、分布式任务分配算法，对任务分配算法进行优化，提高集群任务执行效率，减小任务执行代价。","A级"]
[178,"理学院","海上井喷救援中环境扫描与路径规划的无人机集群协同算法研究","自主","曾礼杰","数学20-1班","2020011789","杨振清/2189","高级工程师","3","崔振轩/2020011793,曾宇嘉/2020011829","0701-数学类","0701","本课题根据海上油井可能会出现的井喷等海上事故，拟探究无人机集群在海上井喷等事故中救援方面的具体应用。针对海上井喷环境的特殊性与复杂性，本项目通过无人机集群，在海上井喷的救援现场，利用其集群优势，聚焦救援现场环境的探测、扫描以及环境信息建立后的救援路径规划。通过迭代优化、仿真模拟，找出最优的算法模型，以期在真实的救援环境中最大化减少人员伤亡以及设备财产损失。","A级"]
[179,"理学院","基于人工智能的岩石图像描述方法研究","自主","陈朝阳","数学20-1班","2020011779","董少群/2019891005","讲师","3","阿斯哈提/2021010177,周鑫/2020011811","0701-数学类","0701","本项目是在将人工智能运用于岩性图像识别的基础上开展的，岩性图像识别与描述有助于地质类基础研究更加精确。但是在建立庞大数据背景的过程中，数据训练速度缓慢，导致丰富的数据库资源不能够很高效迅速地呈现出来。本项目主要针对“如何提高训练过程的速度与效率”这一问题进行研究。我们将从最新的数据和资料出发，利用python实现神经网络等算法，通过优化结构与参数，实现算法与数据库资源的高效结合。","A级"]
[180,"理学院","空气中水捕获—MOFs结构修饰的化学改性研究","双向","徐佳欣","环工20-2班","2020010478","彭云雷/2021880031","副教授","3","徐亦萧/2020010451,杨兢兢/2020010469","0703-化学类","0703","本项目主要以介孔MOFs为切入点，选择以四面体三级建筑单元(TBUs)中异位BDC (MIL-101)或异位BTC (MIL-100)为主体，在BDC或BTC上连接不同亲水性官能团进行化学改性，进行几何优化，实现结构多样性。通过循环实验判断MOFs材料的水稳定性，不同材料在不同相对压力条件下测定水的吸附容量，绘制不同的等温线，分析水吸附等温线中关于拐点、容量和滞后的存在，以实现所需的水吸附性能。","A级"]
[181,"理学院","3DOMM-Al2O3担载贵金属催化剂的制备及其丙烷脱氢性能研究","双向","姜佳言","应化19-1班","2019011872","韦岳长/2012880017","岗位教授","2","谢舒凡/2019011908","0703-化学类","0703","研究不同 Pt、Ru 负载量的 PtRu/Al2O3 催化剂的丙烷脱氢性能。通过添加 P123模板剂制备一系列具有介孔结构的3DOMM-Al2O3 催化剂载体，考察催化剂的形貌，孔径等对催化剂活性、稳定性的影响。研究助剂Sn含量的变化对于活性组分的物相存在形式以及反应性能的影响。比较传统 Pt Sn/Al2O3催化剂与结构改性后的 Pt Sn/3DOMM-Al2O3 催化剂性能的差异。","B级"]
[182,"理学院","合成多功能共聚纳米复合材料及其稳定乳化与驱替特性","双向","高亚豪","应化20-1班","2020011856","柯扬船/1788,王晓琴/2195","教授,高级工程师","4","庄夏青/2020011841,陈大朋/2020011855,王萌萌/2020011839","0703-化学类","0703","1、多元序列共聚包括两亲聚合物属于功能高分子，设计合成该共聚纳米复合材料，产生抗高温、载负与驱替特性；2、选择丙烯酰胺及其衍生物等共聚单体及改性无机（纳米二氧化硅、氧化锌、层状硅酸盐）等体系，设计表面活性剂单体乳液原位共聚反应方法，制成抗高温增黏、界面活性、高温稳定乳化与驱替性体系。\n3、设计中低渗储层提高采收率实验及分析方法。","B级"]
[183,"理学院","驱油用表面活性剂静态吸附规律的研究","双向","解庆莹","应化20-1班","2020011844","刘子龙/2020880016","讲师","3","刘贵林/2019011883,李娟/2020011837","0703-化学类","0703","针对表面活性剂在驱替过程中吸附损失的问题，基于表面活性剂-岩石体系，结合储层的物性特征和多组分矿物组成特征，探究不同矿物组分、表面活性剂分子结构、液固比、温度等因素对表面活性剂吸附的影响，揭示表面活性剂在岩石表面的吸附规律。","B级"]
[184,"理学院","油气藏数学模型的建立及数值模拟研究","双向","陈茜","数学20-1班","2020010062","孟得新/2012880041","讲师","4","田经纬/2020010218,柴泽东/2020011108,张泽琦/2020011404","0701-数学类","0701","通过建立适合于油气藏的渗流数学模型，研究单相流和两相流动；应用有限差分等数值方法求解所建立的数学模型，分析解法的数值稳定性、差分格式的解与原定解问题真解的误差估计、差分格式的解的收敛性等。利用计算机模型模拟仿真油气复杂开发过程，预测未来开发动态，在计算机上多次模拟开发过程，进行油田开发方案优选、产量和地层压力动态预报等，通过计算数学的求解再现油田开发的过程，由此来解决油田实际问题。","B级"]
[185,"理学院","表面活性剂在油水界面上聚集行为的介观模拟研究","双向","孙晗","应化19-2班","2019011924","刘子龙/2020880016","讲师","2","汪邦宇/2019011926","0703-化学类","0703","表面活性剂在许多领域具有广泛的应用,如油田开发、纺织染整、日用化工、药物缓释等。这些应用都与其在界面上的聚集行为密切相关。表面活性剂在油水界面上的聚集行为同时受到表面活性剂浓度和结构、油水比例、聚合物的浓度和聚合度等因素的影响,本课题通过介观模拟研究以上因素对表面活性剂在油水界面上聚集行为的影响,掌握其结构特性和界面性质的变化，对实际应用起到一定指导作用。","B级"]
[186,"理学院","空气中水捕获","双向","卜晗","应化20-2班","2020011899","彭云雷/2021880031","副教授","3","张鑫淼/2020011895,符英超/2020011894","0703-化学类","0703","在沙漠地区等干旱的气候环境中，缺水是一个特别严峻的挑战。虽然大气中有大量的水以蒸汽的形式存在，但通过目前最优异的结露技术收集这些水是非常耗能且不切实际。我们使用吸附剂的吸附型空气集水装置能够在低相对湿度条件下捕获水蒸汽，并可利用太阳能热源驱动获得更高的集水效率。","B级"]
[187,"理学院","高效能表面活性剂复配体系的实验研究","双向","肖彦枫","材料20-1班","2020011374","刘子龙/2020880016","讲师","1",null,"0703-化学类","0703","本项目基于不同种类的表面活性剂与原油间的界面张力特性，从多种表面活性剂的协同增效作用出发，研究表面活性剂多元体系的界面张力，考察不同表面活性剂复配比、矿化度及温度对界面张力的影响，揭示表面活性剂形成超低界面张力的机理，为其在油田化学领域的应用提供参考。","B级"]
[188,"理学院","扩展的非线性薛定谔方程的达布变换及其孤子解研究","双向","袁金伟","数学20-1班","2020011892","孟得新/2012880041","讲师","2","郝天天/2021011767","0701-数学类","0701","非线性薛定谔方程是一个含有孤立子波解的非线性方程。它与诸如非线性光学、等离子体的离子声波等理论物理中的许多非线性问题密切相关，它的解可应用与线性薛定愕方程的特征值问题相关的逆散射问题方法求得。构造扩展的非线性薛定谔方程的N次达布变换，根据不同的种子解，得到方程不同的孤子解并使用Mathematica画图分析解的物理性质","C级"]
[189,"理学院","二维多孔材料的气体吸附与分离特性","双向","董双琦","应化20-2班","2020011878","刘子龙/2020880016","讲师","3","苏煦煊/2020011885,宋丽敏/2020011873","0703-化学类","0703","本项目拟采用分子模拟技术从微观尺度探索多孔膜材料对温室气体（CO2，CH4等）的吸附与分离特性，研究如何高效地从工业废气中捕获与分离温室气体，不仅有助于解决环境污染问题，而且能为实验制备和调控具有高性能分离膜提供重要的理论指导。","C级"]
[190,"理学院","页岩表面影响气体吸附的微观机理","双向","刘立伟","应化20-2班","2020011886","刘子龙/2020880016","讲师","3","苗雨暄/2020011887,魏元海/2020011900","0703-化学类","0703","针对当前页岩气藏开发中存在的微﹣纳米孔隙中气体赋存机理不明的问题，探索高温高压条件下煤层孔隙与气体分子间的相互作用力，通过对比不同温度和压力范围的页岩储层气体吸附量和表面能，明确页岩表面气体吸附的微观机理。","C级"]
[191,"理学院","科学规范本国餐饮连锁化策略—以“南城香”为例","自主","任泽鹏","数学类21-2班","2021011811","马宁/2205","副教授","3","李榆晴/2021011795,陈炳荣/2021011972","0701-数学类","0701","根据本国当前餐饮连锁化率低、中小型餐饮连锁业发展困难、大型餐饮连锁业稀少等问题，以南城香为例进行一个新餐饮连锁模式的规划，实现减少成本、提高利润、做大做强的目标，并且能够对中小型餐饮连锁业的发展起到借鉴和帮扶作用。","C级"]
[192,"理学院","短视频评论","自主","李婉铭","数学类21-2班","2021011793","李明/2427","教授","2","李梦彤/2021011794","1201-管理科学与工程类",{"$f":"LEFT(L193,4)","v":"1201"},"对短视频与评论进行大数据分析与挖掘，探究其在学术和商业领域上的价值。\n随着短视频与评论被大众普遍接受，相关信息呈现出爆炸性的增长，此时短视频与评论大数据分析与发掘逐渐显现出重要的学术和商业价值。我们通过建立相应的模型，采取相应的特征并选择，通过算法得到各信息的有用性检测。","C级"]
[193,"理学院","碳捕获","双向","周旭光","应化21-1班","2021011852","彭云雷/2021880031","副教授","3","徐沁海/2021011850,张裕敏/2021011831","0703-化学类","0703","在国家\"碳中和,碳达峰\"的战略目标下，我们希望从气空气中或者烟道气中直接捕获CO2,减少多余步骤，多余损耗，以最简单、最高效的方式，封存、捕获、利用二氧化碳这一种常见并且适用领域广泛的物质，从而为其他领域提供原料并且助力国家“碳中和、碳达峰”战略目标的实现。\n","C级"]
[194,"理学院","碳中和背景下电动汽车高速公路充电桩安装使用经济学模型优化研究","自主","余佩佩","统计20-1班","2020011772","杨振清/2189","高级工程师","3","黄文萱/2020011773,李林蓉/2020011775","0701-数学类","0701","近年来碳达峰碳中和的话题越来越热，汽车行业的转型在减少碳排放的道路上起着至关重要的作用，电动汽车虽已投入市场，但就反馈而言与传统汽车仍有差距。电动汽车的使用过程中出现的问题主要集中在长途行驶过程中，电池容量一般不满足到达目的地，而在高速公路上又容易出现充电难的问题，为了解决这一问题我们展开了本次的研究，旨在解决电动汽车使用过程中遇到的困难，促进新能源汽车的发展，助我国早日完成碳达峰碳中和目标。","C级"]
[195,"理学院","超临界二氧化碳驱油数值模拟研究","双向","田子健","数学类21-2班","2021011803","赫文豪/2019891006","副教授","3","唐洁/2021011796,宋伊瑞/2021011789","0701-数学类","0701","超临界二氧化碳在石油钻井、完井、提采等领域具有广泛的应用前景。但目前超临界二氧化碳在应用上还存在内聚能密度较低，溶剂化能力弱等问题，严重制约其技术发展。如何提高聚合物的溶解能力，保证聚合物在油田压裂的温度和压力条件下具有好的溶解性能和增黏效果，亟需开展数值模拟研究，从分子尺度分析不同类型添加剂在超临界二氧化碳中的增稠机理，为稠化超临界二氧化碳压裂体系的现场应用提供理论指导。\n","C级"]
[196,"马克思主义学院","团史视野下提升新时代青年思想引领力的教育方法与实践途径研究——基于建团百年社会实践宣讲分析","自主","王紫楠","思政20-1班","2020012151","刘韵秋/0465,杨关玲子/2417","副研究员（自然科学）,副教授","4","高闻阳/2020012197,刘语灿/2020012152,李艺婷/2020012199","0301-法学类","0301","为深入贯彻落实习近平总书记关于青年工作的重要思想，引导和帮助广大青年学子在观察实践中学党史、强信念、跟党走，团队围绕建团 100 周年的历史背景，组织成立“石子之声”青年宣讲团，在全国范围内开展青年宣讲社会实践活动。并以此为调查基础，展开对宣讲受众的差异性研究分析，从而探究在百年团史背景下如何更好地提升新时代青年思想引领力的教育方法与实践途径，激励新时代青年坚守初心、践行使命，赓续共青团红色血脉.","A级"]
[197,"马克思主义学院","全面加强和改进新时代高校美育育人路径的探索研究","自主","张可莹","思政20-2班","2020012192","杨关玲子/2417,贾庆超/2017881007","副教授,无","5","张静文/2020012193,宋怡/2020012186,华依柯/2020012182,肖杨/2020012207","0305-马克思主义理论类","0305","      本课题立足于在中国石油大学大环境及特色下研究全面加强和改进新时代美育的创新实践。着眼于传统美育教育的不足之处，在校内展开理论调研和相关资料收集，深入分析制定实践计划，并在校内进行实践实验。最后总结理论研究和实践探索两方面的经验和不足，完善全面加强和改进新时代美育的创新实践路径，形成一套可行性较强的实施方案和可推广应用的经验。","B级"]
[198,"人工智能学院","页岩油藏参数智能评价研究","双向","张轩溢","人工智能19-1班","2019011706","陈志明/2021880001","教授","4","孙鑫乙/2020010227,管方震/2020010223,黄福溢/2020010225","0809-计算机类","0809","采用自编程或商业软件，建立页岩油藏仿真模型，计算理论试井曲线图版，基于数据驱动形成裂缝参数反演知识库，开展实例分析应用。\n具有科研探索精神及独立学习的能力；要求具有的计算机软件学习操作能力；或会使用python或matlab等编程语言。\n","B级"]
[199,"石油工程学院","底水油藏水平井沿程见水规律动态识别模块编制","自主","张秋月","石工19-1班","2019010239","曹仁义/2356","教授","2","沈生磊/2019010241","0815-矿业类","0815","底水油藏水平井由于采油速度快，井控面积大，在底水油藏得到广泛应用，但开采时易发生水淹且水淹原因复杂。因此，进行底水油藏水平井沿程见水规律具有重要意义。本项目为了进行底水油藏水平井沿程见水规律研究，基于Python语言，利用Pyqt5工具编制一个底水油藏水平井沿程见水规律动态识别模块。","A级"]
[200,"石油工程学院","压裂设计软件开发与应用","双向","朱俊锋","石工20-2班","2020010255","陈冬/2014880071","副教授","4","薛壬捷/2020010266,王帅/2020010257,冯键宇/2020010241","0815-矿业类","0815","压裂优化设计软件是进行低渗透和非常规油气储层压裂施工参数优化的必备工具，但长期以来，国内基本依赖进口。对于低渗透油藏来说，压裂是重要增产措施，压裂设计软件是优选油层改造措施和优化设计措施的基本手段。随着近年来水平井单井开发效果的提高，目前的压裂设计软件整合性较差，可视化程度低，数据复杂，对于国内环境来说，开发一款“压裂设计软件”、加强产能预测、性质优选、数据可视化等是一个重要的任务。","A级"]
[201,"石油工程学院","一种基于空化射流清除牙结石的电动牙刷","自主","王瑞","石工19-3班","2019010283","王海柱/2013880031,李敬彬/2021880007","教授,讲师","2","武玉程/2019010294","0801-力学类","0801","牙齿的健康影响着人们的健康和生活质量，牙结石的清除是一项漫长复杂的过程。常规口腔诊所通常采用超声洁治的方式进行清除，需数小时才能完成全口腔牙齿的清洁。空化现象蕴藏着巨大的能量，空化现象与射流的结合大大提高了射流对物体的冲蚀与破碎能力。为此，本项目将空化射流与牙结石清除相结合，通过研究空化射流对牙结石的破碎机理以及优化射流参数实现牙结石的便捷、舒适清除，在此基础上研制一款新型的空化射流电动牙刷。\n","A级"]
[202,"石油工程学院","《高校团学创新工作中文创IP的形象构建与 宣传实践研究》","自主","任皓楠","石工19-3班","2019010280","刘东东/2013880017,肖亚楠/2018880007","讲师,讲师","4","肖丹婷/2019010277,唐培铭/2020010199,孙腾骏/2020010333","0302-政治学类","0302","本项目在建团一百周年及新媒体时代背景下，以高校团学工作中文创IP的形象构建与创新实践的研究为主题，通过理论分析与问卷调研，探寻具有学院文化底蕴且接受度高的创意特征元素，结合学院团组织新媒体宣传现状，力求为学院团属文创IP的形象构建与宣传工作提供建设性意见和创新性实践，以此来有效推动文创IP形象在创新高校团学宣传工作中的使用与发展。\n","A级"]
[203,"石油工程学院","致密砂岩储层微观孔隙结构研究及储层敏感性评价","双向","张岩哲","石工19-4班","2019010312","代金友/2148","副研究员（自然科学）","4","袁婉晴/2019010309,王立玮/2019010311,吾西洪·叶尔加纳提/2019010310","0814-地质类","0814","致密砂岩油藏是我国重要油藏类型。其储层微观特征决定储层敏感性和宏观开采效果。开展本项目研究，主要目标是利用各类薄片、压汞及敏感性测试资料，研究致密砂岩储层的岩石学特征、孔隙结构特征、敏感性特征，掌握储层微观特征及敏感性表征方法，深化储层微观特征认识，厘清致密砂岩储层微观特征独特性。","B级"]
[204,"石油工程学院","页岩储层压后渗流实验研究","双向","韩佳鹏","石工19-1班","2019015141","陈志明/2021880001","教授","2","张佳豪/2020010303","0815-矿业类","0815","页岩储层经过压裂后，其裂缝形态呈现并不均匀，裂缝中的渗流规律也存在极强的不确定性。希望采用3D打印技术，与北京大学合作，制作压裂后页岩岩样，开展渗流实验，对压裂页岩储层的渗流规律进行研究与分析。在实验数据的基础上尽力做到对页岩储层压后的部分流动参数进行反演及评价。","B级"]
[205,"石油工程学院","复杂工况下深水钻井隔水管紧急解脱反冲响应数值模拟研究","双向","李睿","石工19-4班","2019010323","王宴滨/2016880016","副教授","2","郭刘瑞/2019010234","0819-海洋工程类","0819","采用Orcaflex软件，模拟分析深水钻井隔水管紧急解脱过程中的反冲响应特性，获得反冲响应时程曲线及隔水管应力分布规律\n对学生要求：对课题具有浓厚兴趣；具有海洋工程相关知识背景；具有较强的主动学习精神。\n","B级"]
[206,"石油工程学院","基于机器学习的压裂裂缝扩展代理模型研究","双向","李申建","安全19-2班","2019011353","盛茂/2014880021","教授","2","胡忠宇/2018010357","0815-矿业类","0815","本项目拟通过分析压裂工程数据的分布特征，利用数值模拟软件生成更丰富的完整样本库，做相关性分析法、敏感性分析法与降维方法优选特征参数，得到压裂裂缝几何参数的主控因素，并建立机器学习模型,得到工程参数、工艺流程选择与压裂裂缝参数间的关系，结合现场数据校正模型，实现压裂裂缝几何参数、有效改造体积、产量的快速预测。","B级"]
[207,"石油工程学院","五峰组-龙马溪组页岩气藏提高采收率可行性技术研究 ","双向","李柏辰","石工20-1班","2020010224","兰朝利/1977","讲师","2","王梦冉/2020010200","0709-地质学类","0709","本项目依托中国石油大学（北京）与中国石油勘探开发研究院合作生产项目《深层页岩沉积微地貌与有利区块筛选》。截至目前，四川盆地五峰组-龙马溪组页岩气藏开发处于开发初期。本项目研究该页岩气藏开发后期的提高气藏采收率技术，研究具有前瞻性性质。我国页岩气藏开发晚，相关提高采收率技术尚未应用，研究程度低，亟需开展相关研究。","B级"]
[208,"石油工程学院","钻头选型知识库的开发与应用","双向","聂晓宇","石工21-6班","2021010339","陈冬/2014880071","副教授","5","李炳意/2021010347,曾舒妍/2021010337,李鹏飞/2021010356,李秋宇/2021010342","0815-矿业类","0815","通过实际施工过程中钻头选择的数据搜集整理，用相关软件建立钻头的数据库，并使用数据挖掘、知识图谱等先进智能算法对目标用户推荐个性化钻头选择方案，方便根据不同情况筛选合适钻头，从而简化钻头选型这一复杂问题。","B级"]
[209,"石油工程学院","二氧化碳作用后页岩化学结构与润湿特性实验研究","自主","卫登科","石工20-2班","2020010235","王建国/2285","讲师","4","倪阳/2020010234,牛硕/2020010236,牛智/2020010233","0815-矿业类","0815","目前有关于CO2作用后页岩力学性质与孔隙结构等物理性质的相关研究， 而化学结构等特征处于起步阶段。CO2注入页岩储层后，高温高压环境下，CO2-页岩相互作用改变页岩的力学和物理化学性质，进而影响页岩气的开采效果。其影响规律与作用机制尚不清楚。因此开展CO2作用后页岩化学特性研究对 CO2强化页岩气高效开采及地质封存一体化实践具有一定指导意义。","B级"]
[210,"石油工程学院","深地储层金属-CO2电池可行性、规律与机理研究","双向","周琛展","石工20-6班","2020010377","刘月田/0632","教授","3","马学强/2020010366,韩硕/2020010355","1207-工业工程类","1207","运用或制备不同金属-CO2电池，模拟深地储层条件并分析金属-CO2电池在深地储层中运用的可行性；优选适用于深地储层的金属-CO2电池并分析其在深地储层中的反应稳定性、反应速率等规律；深入探究金属-CO2电池在深地储层的作用机理。","B级"]
[211,"石油工程学院","复杂气藏生产动态分析系统","双向","刘晓旗","石工20-1班","2020010226","石军太/2012880036","副教授","3","段连东/2020010279,冯歌/2020010340","0815-矿业类","0815","采用计算机语言，将课题组近年来提出的异常高压气藏、水驱气藏、凝析气藏、协同开发的气藏群等复杂气藏工程理论模型软件化，实现计算过程的自动化和可视化 。分别实现如下四个模块：\n1、动态储量计算模块；\n2、平均地层压力实时预测模块；\n3、气井产能分析及合理配产模块；\n4、采收率预测模块。","B级"]
[212,"石油工程学院","考虑裂缝时变性的岩石流固耦合数值新模型研究","双向","龚博雅","石工20-6班","2020010360","田冷/2197","教授","3","张子鸣/2020010376,杨冬男/2020010375","0815-矿业类","0815","致密砂岩气藏的高效开发对我国能源安全和“双碳目标”实现至关重要，然而现有 模拟模型中裂缝一经加入，后期并未考虑其变化，严重影响模拟精度和预测结果。本项目基于岩石应力平衡与多相流动效应，建立考虑裂缝时变性的岩石流固耦合数值模型，创新性地进行动态分析裂缝形态和扩展对渗流的影响，以及裂缝和多相流体动态变化对气井产量的作用，为合理开发指标制定提供更为准确的方法。","C级"]
[213,"石油工程学院","“双碳”目标下二氧化碳在页岩油开发中的应用","自主","王健","石工20-6班","2020010361","马新仿/1811","教授","3","池依海/2020010373,乔一卓/2020010367","0805-能源动力类","0805","在完成“双碳“的大环境下，针对准东新区页岩油储层特点，如储层渗流能力差，采用衰竭开采方式地层能量下降较快，实际采收率低难题，开展CO2与原油、储层作用机理实验，揭示在准东新区页岩油储层中，如何利用CO2来提高采收率机理与方法。","C级"]
[214,"石油工程学院","基于地质工程大数据与人工智能的压裂效果评价与产能预测研究","双向","安天翔","石工20-2班","2020010251","肖聪/2021880016,张士诚/0475","讲师,教授","3","何家成/2020010240,李云清/2020010278","0815-矿业类","0815","本项目拟开展基于实际储层地质、完井、油气数据为一体的大数据挖掘与分析研究，厘清影响压裂效果的关键地质及工程因素，并建立基于不同储层及压裂参数条件下对气井压裂效果的预测模型。应用大数据分析挖掘方法可以有效规避页岩压裂的复杂机理研究，从大量真实数据中挖潜价值，从而为优化页岩压裂方案设计、合理决策现场施工调整提供了理论指导及技术支撑。","C级"]
[215,"石油工程学院","输油管道油水两相流动规律研究","双向","尚腾飞","储运21-3班","2021010726","曾泉树/2017880037","讲师","5","张子涵/2021010715,刘泽嘉/2021010737,曲润蕾/2021010688,宋佳隆/2021010723","0802-机械类","0802","通过完成输油管道典型流动条件调研，研究管道参数（倾角、直径、长度）、油水物性（含率、密度、粘度、界面张力等）对油水两相流型的影响，研究管道参数（倾角、直径、长度）、油水物性（含率、密度、粘度、界面张力等）对油水两相压降的影响，建立输油管道油水两相流动模型，从而降低实际生产、运输成本。","C级"]
[216,"石油工程学院","煤层气注氮增产改造工艺参数优化研究 ","自主","朱俊橙","石工21-5班","2021010318","周劲辉/2043","高级工程师","3","路军财/2021010310,朱卫方/2021010316","0820-航空航天类","0820","（一）研究目的\n本项目通过对现场煤层气注氮增产改造数据的分析，利用灰色系统分析理论，分析影响煤层气井注氮增产改造效果的主控工艺因素，优化注氮工艺参数，为煤层气井注氮增产改造工艺提供理论与技术支持。\n\n（二）研究内容\n（1）多因素影响分析方法研究\n多因素分析方法有多元回归分析方法、人工神经网络方法、灰色关联分析方法、聚类分析方法等，根据煤层气井注氮增产改造的特点，优选多因素分析方法。\n","C级"]
[217,"石油工程学院","二氧化碳增强页岩气开采技术机制分析","自主","成浩瑾","石工20-2班","2020010237","王建国/2285","讲师","3","李嘉伟/2020010243,李响/2020010242","0815-矿业类","0815","我们的研究课题是：二氧化碳增强页岩气开采技术机制分析。通过结合二氧化碳驱替页岩气的研究现状与已有注二氧化碳提高页岩气采收率实验，将理论基础、实验成果、实际开采效益等多个方面进行整合，并作出一套完整的二氧化碳增强页岩气开采技术机制分析。","C级"]
[218,"石油工程学院","非常规气藏生产动态分析系统","双向","全悦","石工20-3班","2020010258","石军太/2012880036","副教授","3","袁丹晨/2020010207,赵锐/2020011722","0815-矿业类","0815","本项目拟采用计算机语言，将煤层气藏、页岩气藏、致密气藏等非常规气藏工程理论模型软件化，实现计算过程的自动化和可视化。其中，软件预期可实现煤层气开采全过程的动态储量计算、平均地层压力实时预测、气井产能分析及合理配产、采收率预测，为工程人员预测调整开采方案提供稳定性强的生产动态分析系统。","C级"]
[219,"石油工程学院","煤层气注氮增产改造机理研究","自主","李毅轩","石工21-5班","2021010321","周劲辉/2043","高级工程师","4","刘昊天/2021010315,全俊钰/2021010311,刘威/2021010317","0815-矿业类","0815","通过对煤岩注氮室内实验，探索注氮增产改造机理，揭示注氮对煤岩微观结构特征变化规律和煤岩渗透率的变化规律，为煤层气注氮增产改造技术提供理论依据。\n注氮压力、闷压时间、放喷频率等注氮工艺参数对煤岩孔隙裂隙等特征的影响规律是优化注氮工艺参数的基础。反复进行注氮-闷压-放喷操作，煤岩内部的孔隙裂隙发生扩展并与其它孔隙裂隙连同，产生微压裂并形成新的裂隙，这些微观特征的变化可以揭示煤层气井注氮增产的机理。","C级"]
[220,"石油工程学院","石油工程特色材料力学教具设计与制作","自主","王峻彦","石工21-5班","2021010312","刘伟/2013880047,李世远/2014880049","副教授,副教授","4","杜齐齐/2021010314,刘天伟/2021010325,秦腾飞/2021010327","0815-矿业类","0815","材料力学是工科学生的重要基础课程，通过该课程的学习掌握固体材料应力、变形和稳定性的基本概念与分析方法，是石油工程专业系列核心课程必须的先修基础。长期以来，该课程缺乏恰当的教学演示工具，很多重要而抽象的概念学生难以理解。本项目拟利用机械加工、3D打印等方法，创新设计和研制具有石油工程特色的材料力学教具，一方面提升项目组成员的创新能力和动手能力，另外一方面有利于我校石油工程专业材料力学高水平课程建设。","C级"]
[221,"外国语学院","欧盟氢能外交跟踪研究","双向","刘若溪","英语20-1班","2020012231","郑世高/2098 ","讲师","5","李坤/2021010038,董忘忧/2021012222,李鲁豫/2020012256,马一冉/2020011034","0502-外国语言文学类","0502","一直以来，欧盟长期依赖俄罗斯油气资源，同时碳中和的提出要求国际社会进行能源转型。氢能具有应用范围广，应用场景多，环境友好型等特点，使得氢能成为欧盟，尤其是德国能源转型的方向。本项目通过跟踪研究欧盟成员国特别是德国的氢能国际合作关系的发展，对欧盟氢能外交关系、国家关系、贸易关系和财富权力格局变化进行跟踪研究。","A级"]
[222,"外国语学院","青年大学生就业心理压力的现状调研及对策研究","自主","高一茗","英语20-2班","2020012255","谌丛/2363","讲师","5","许嘉莉/2020012259,尹勉/2020012285,张中锐/2020012219,何芳/2021012242","0401-教育学类","0401","受高校毕业生规模扩大、疫情影响，大学生就业竞争日益激烈、心理压力日渐突出。而就业是关乎民生的头等大事，受党和国家高度重视。研究大学生的就业心理压力，帮助大学生提高就业心理素养，关系到大学生身心健康及社会的和谐与稳定。项目组希望通过调研和分析，了解大学生就业心理的现状、大学生对就业形势的了解与就业心理的调试状态，分析总结大学生就业心理压力源，探索提升大学生就业心理素养、增强就业心理韧性的可行性建议。","B级"]
[223,"外国语学院","中欧氢能发展战略对比研究","自主","于子涵","英语21-1班","2021012185","郑世高/2098","讲师","5","刘沛均/2021012198,潘婷婷/2021012199,何雨佳/2021012188,刘俊阳/2021012187","0502-外国语言文学类","0502","本项目主要研究内容为对比中国与欧洲国家近年来在氢能发展战略上的异同，并主要通过政策话语分析手段，研究产生这些异同的原因，以及了解不同战略影响下，中国与欧洲国家氢能事业发展状况。本项目旨在加深对中欧氢能战略的了解，并探索中国氢能战略的未来。","C级"]
[224,"新能源与材料学院","高性能镍钴基电容材料制备及性能评价","双向","周子正","新能源21-1班","2021011365","杨旺/2019880018","副高级","2","倪晓冬/2021011358","0804-材料类","0804","围绕高性能镍钴基电容材料的制备开展实验研究，熟悉相关材料的制备及表征方法，了解具有独特电化学特性的镍钻基超级电容器电极材料的详细工艺及电化学测试结果，掌握非对称超级电容器材料的评价方法，获得一种储能用高性能镍钴基电容材料。","A级"]
[225,"新能源与材料学院","二氧化碳电催化转化催化剂的智能筛选","双向","郭文宣","材料21-2班","2021011469","李振兴/2015880003","副研究员（自然科学）","3","郑廷辉/2021011462,程伟杰/2021011500","0703-化学类","0703","随着全球二氧化碳的排放快速增长，二氧化碳的捕获、存储以及转化受到广泛关注。其中二氧化碳电催化还原是一种有效的二氧化碳的转化手段，可以把二氧化碳转化为高附加值的化学品。由于二氧化碳电催化反应路径复杂涉及多个电子转移，产物种类繁多，选择性差。因此，本项目主要研究内容为通过对催化反应反应路径的理论计算，研究电催化机理，从而筛选出催化活性高且选择性好的二氧化碳电催化转化催化剂。","A级"]
[226,"新能源与材料学院","化学气相沉积法（CVD）制备FeSe纳米线","双向","刘芳菲","材料19-1班","2019011399","邢颖/2016880035","副教授","3","陈林菲/2019011394,马乐远/2019011397","0703-化学类","0703","本项目拟利用CVD方法制备FeSe纳米线：1.在已有的双温区管式炉基础上搭建一套完整的CVD实验装置；2.查阅相关文献，调研FeSe纳米线的CVD生长方法，探索反应温度、反应时间、降温速率以及输运气体流速等对FeSe纳米线的影响，并确定最优反应条件；3.对所制备的样品利用SEM、EDS、XRD、TEM等方法进行形貌、结构和元素表征。","A级"]
[227,"新能源与材料学院","表面张力对亲水性二维片状薄膜干燥卷曲现象的调控作用","双向","李坤祺","材料19-3班","2019011475","高旸钦/2016880029","副教授","3","聂嘉蕾/2020011407,张子煜/2020011441","0804-材料类","0804","选用CoSO4和 NiSO4混合溶液和氨水作为原料，依靠气液界面技术（GSIT）生成二维亲水性片状薄膜。为保证这种薄膜结构的连续性和完整性，需要探究薄膜在干燥过程中产生龟裂卷曲的微观机制，并通过加入表面活性剂、适当改变温度和压强来降低溶液的表面张力，尽可能地避免亲水性薄膜干燥时发生卷曲碎裂。","A级"]
[228,"新能源与材料学院","深空探测用样品采集器的性能研究","双向","郑俏","材料20-3班","2020011445","郝世杰/2013880019","教授","3","雷雨露/2020011448,熊金玲/2020011446","0804-材料类","0804","我国从进入航天时代起都不曾停下对深空的探测脚步，其中一个重大目标是进行样品的采集。我国下一步航天计划就是通过一次发射，开展对小行星的探测、附着以及取样返回的探测任务。盲采对采集器的要求非常高，采集陷入多重困境，为此我们提出了以形状记忆合金弹簧簇为单位的采集器的解决方案。本项目主要研究深空探测用样品采集器的结构与性能之间的关系，表征采集器在模仿深空环境中的采集性能，为我国小行星探测提供适合的采集器。","A级"]
[229,"新能源与材料学院","基于机器学习的生物炭基厌氧消化促进剂制备分析系统","双向","左润国","新能源21-1班","2021011342","李叶青/2014880022","副研究员（自然科学）","4","冯伊婧/2021011339,刘智扬/2021011810,张田慧/2021011408","0805-能源动力类","0805","项目通过人工智能算法判断分析特定的实际工厂工况条件，制定适合具体工厂的最优生物炭制备方案，及厌氧消化时生物炭的添加量和操作条件，来缩短生产甲烷等经济产物的产期，更高效地为工厂实现沼气甲烷增产的产值效益，并进而实现甲烷经济效益的显著提升。减小二氧化碳的排放，实现节能减排的环保效益，助力国家双碳目标的达成。","A级"]
[230,"新能源与材料学院","采用可控挥发制备高度有序的聚合物单晶的研究","自主","汪骏豪","材料20-3班","2020011457","吴天宇/2022880022","讲师","3","黄昊哲/2020011468,罗浩洋/2020011458","0804-材料类","0804","高分子单晶一直是高分子物理研究的重点领域。由于结晶过程中主链的平面化与分子链的紧密堆叠，使得单晶相较于无序态的高分子材料性能得到极大提高。而如何获得高度有序单晶一直是待解决的问题。在本研究中，将采用溶剂可控挥发的手段，以聚乙烯醇为例实现薄膜溶液中单晶的培养。通过控制溶剂的挥发速度，制备具有不同尺寸与成核密度的单晶样品。采用光学、原子力、扫描电子显微镜等手段对单晶形貌进行统计分析。","B级"]
[231,"新能源与材料学院","单原子负载碳纳米材料电解水性能研究","双向","李蔚","新能源20-2班","2020011532","王春霞/2016880022","副教授","3","陈天乐/2020011533,叶文欣/2020010504","0804-材料类","0804","合成单原子负载的金属有机框架纳米材料，进行电催化性析氢能研究，利用理论计算进行模拟验证。掌握简单的碳纳米材料合成方法，表征分析方法，并熟练掌握电催化相关的性能测试和理论计算。利用水热法、气相沉积法（CVD法）、复合电沉积法等方法制备负载单原子的碳纳米材料，再对其进行材料表征、结构表征，最后通过实验研究所制备的材料的电催化氧还原和析氢的性质。\n","B级"]
[232,"新能源与材料学院","我国氢能行业的发展与挑战","双向","卢艾亲","能经20-1班","2020011940","孙晖/2013880072","副教授","4","刘圣杰/2020011934,李明海/2018010152,杨鑫/2019010118","0805-能源动力类","0805","作为一种新兴能源，尽管近年来氢能产业发展迅速、已经具备一定的产业规模化基础，但还有不少现实问题亟待解决。该项目需要从产业政策、产业链分布、专利布局、成本核算等多角度出发，研究我国氢能行业所面临的挑战以及未来发展前景的分析。","B级"]
[233,"新能源与材料学院","生物质基光催化氧化探索","双向","贾静","材料19-1班","2019011402","李江/2014880017","副研究员（自然科学）","3","赵冰月/2019011401,冯力/2019011398","0805-能源动力类","0805","化石储量的枯竭和温室气体的过度排放导致了对利用生物质等可再生资源来生产生物燃料和增值化学品的迫切需求，光催化作为一种环境友好、节能的生物质转化方法越来越受到人们的重视，通过合理调控催化剂和光诱导活性自由基物种之间的相互作用，以及光催化剂结构、溶剂等反应参数的影响，构建具有高可见光活性的光催化体系，可以实现生物质的高值化利用，项目研究的是在光催化下原料在单线态氧参与后发生了环加成反应产生一系列产物。","B级"]
[234,"新能源与材料学院","中空结构纳米材料的制备及在催化二氧化碳参与的有机反应研究","双向","陈丽娜","材料20-2班","2020011406","李振兴/2015880003","副研究员（自然科学）","2","汪玉荣/2020011405","0804-材料类","0804","中空结构纳米材料催化剂可明显提高反应物传质速率，增加催化剂体积，并且可以通过控制外壳的厚度，使中空结构纳米材料对反应物的运输不产生阻力。运用自模板方法，在不使用种子前体的情况下通过选择性化学蚀刻方法合成中空结构的纳米材料。同时将得到的中空结构的纳米材料作为催化剂，应用到二氧化碳参与的有机化学反应中，为学术研究和工业生产提供一种全新合成方法，并且为基于金属纳米材料的类均相催化体系的开发提供理论依据。","B级"]
[235,"新能源与材料学院","剪切增稠水凝胶的设计制备及性能研究","双向","卓儒杰","材料20-1班","2020011389","李勃天/2016880030","副教授","2","罗杰/2020011433","0804-材料类","0804","动态共价键由于其动态可逆断裂-重组的独特属性，常被应用于合成自由修复材料，同时许多由动态共价键所构筑的聚合物交联网络在一定剪切速率下往往表现出剪切增稠的效应，本项目通过测定添加了对苯二硼酸的聚乙烯醇交联网络中硼酸酯键的寿命，来表征该瞬态交联网络的力学响应，并据此尝试构建以酰腙键（一种动态共价键）为主的新型交联网络模型，分析和评估其剪切增稠的性能。","B级"]
[236,"新能源与材料学院","氢气生物甲烷化工艺及反应器设计","双向","何章旭","材料20-3班","2020011461","李叶青/2014880022","副研究员（自然科学）","2","彭浩楠/2020011456","0805-能源动力类","0805","开发新型的氢气生物甲烷化反应器及工艺，改进当前氢气生物化产甲烷反应装置生产效率低下的问题，为绿色甲烷的大规模应用提供基础，通过利用power-to-gas技术实现生产零碳绿色天然气，减少碳排放量，利用可再生能源获取天然气等燃料，从而实现能源的可再生使用。\n","B级"]
[237,"新能源与材料学院","金属@MOFs--奶酪填充式储氢技术","双向","孟庆宁","新能源20-2班","2020011538","杨克/2016880010","助理研究员（自然科学）","4","周旷远/2020011490,李德志/2020011526,宋廷玉/2020011520","0804-材料类","0804","作为清洁理想的二次能源，氢能源已引起世界各国的广泛关注，金属有机骨架化合物(MOFs)由于它们非常高的比表面积和稳定的孔结构，可用于负载尺寸可调的金属纳米粒子， “金属@MOFs\" 系统在气体储存尤其是储氢方面备受关注，本次创新比赛我们将功能性金属高度分散在自身具有高比表面积的MOFs材料上，从而设计一种新型储氢材料，以此实现储氢性能的提升。","B级"]
[238,"新能源与材料学院","高催化活性铜纳米结构合成及在二氧化碳转化中的应该","双向","李田育","新能源21-1班","2021011346","李振兴/2015880003","副研究员（自然科学）","1",null,"0703-化学类","0703","减少二氧化碳气体在空气中的含量是”碳中和，碳达峰“的最直接目标，二氧化碳电还原是一种理想的二氧化碳治理途径，针对该反应，铜可以在一定程度上抑制该反应的副反应的进行，同时基于铜的低成本优势，铜纳米材料作催化剂受到了人们的广泛关注。本项目主要对铜催化剂晶面、形貌、尺寸控制, 氧化态调节, 缺陷工程, 催化剂串联, 表面修饰等诸多方面开展研究，为基于金属纳米材料的催化体系的开发提供理论基础。","B级"]
[239,"新能源与材料学院","铜基合金纳米结构制备及在电催化选择性氧还原制过氧化氢的应用","双向","王子安","新能源20-2班","2020011525","李振兴/2015880003","副研究员（自然科学）","1",null,"0703-化学类","0703","过氧化氢在造纸、电子、工业废水处理以及氧化等化工行业发挥重大作用。目前，过氧化氢的工业生产仍然采用传统的蒽醌工艺。该工艺的主要问题在于，步骤复杂，有机副产物较多，催化剂多采用Pd/Al2O3贵金属催化剂而且过氧化氢的大规模运输、存储都属于高危工种。选择性氧还原制过氧化氢由于其能耗和成本低，可以直接在漂白工业、酸性废水处理行业使用，具有广阔的应用前景。","B级"]
[240,"新能源与材料学院","铁铬液流电池电解液的优化研究","自主","赵思雨","化工类21-1班","2021010364","徐泉/2014880008","教授","3","李卿熙/2021010025,杜易璋/2021010144","0703-化学类","0703","针对铁铬液流电池存在的问题，系统分析并阐述不同温度，尤其是在65℃条件下，电解液中Pd离子、Bi离子浓度的变化对电极反应有怎样的影响，以期揭示如何选择适用于高温服役铁铬液流电池的抑制析氢添加剂。可以预见，在优化电解液的基础上，选择更适合铁铬液流电池的析氢抑制剂，会在很大程度上提升电池的稳定性，为铁铬液流电池的进一步发展及应用提供数据支撑。","C级"]
[241,"新能源与材料学院","柔性环保节能保温膜的设计与制备","双向","田锡萌","材料21-3班","2021011502","相文峰/2403","副教授","5","刘家懿/2021011470,李轲宜/2021011466,孙雅萌/2021011472,邓钰/2021011504","0804-材料类","0804","1.通过利用一些复合材料最大程度的增强太阳光的吸收，极大地增强了保温膜的光热性能。\n2.利用镍纳米线阵列反射红外线技术来降低人体能量散失，增加薄膜保温功效以便达到能量最大利用效果。\n3.薄膜的优化结构设计：采用双层膜结构，夹层填充电热材料（例如石墨烯）从而达到更好的保温功效。\n市场前景：\n解决目前市场上使用的保温膜材料科技含量不高，保温效果不好的问题。为更好满足市场需求应运而生。","C级"]
[242,"新能源与材料学院","微生物腐蚀生物电化学检测电极优化","双向","高鹏飞","材料20-1班","2020011402","李迎超/2017880010","副教授","2","张仁婕/2021011435","0804-材料类","0804","设计多层堆栈结构的微电极，采用电镀、沉积等技术完成制备，对该电极进行材料性能表征，并基于生物电化学电子传递理论，应用该电极检测水环境中微生物的含量，确定微生物腐蚀能力。采用电镀、沉积技术制备微米尺寸的检测电极，基于生物电化学理论检测微生物腐蚀行为。","C级"]
[243,"新能源与材料学院","基于生物质的纳米材料的合成及电催化析氢性能研究","双向","蒋俊杰","新能源20-1班","2020011489","王春霞/2016880022","副教授","4","徐雅轩/2020011477,王殊斐/2020011476,柴清硕/2020011486","0804-材料类","0804","寻找具有优良天然形貌的可再生生物质和性能较好的负载金属纳米颗粒材料，并在此基础上通过水热炭化法制备碳纳米材料，控制参数，得到其最佳制备方法与条件。同时利用制备出的生物质复合碳纳米材料进行电解水催化析氢的效率的研究。","C级"]
[244,"新能源与材料学院","碳纤维/氧化锌纳米棒阵列负载纳米金属颗粒催化剂的制备与CO2转化性能","双向","朱光瑀","材料20-2班","2020011431","陈立强/2167","讲师","3","王圣/2020011424,康文佳/2020011410","0804-材料类","0804","  （1）采用水热法制备碳纤维/氧化锌纳米棒阵列负载纳米金属颗粒催化材料 \n（2）对催化材料形貌结构和电化学特性进行表征测试 \n（3）探究催化材料在不同温度压力环境下的CO2催化转化性能。      ","C级"]
[245,"新能源与材料学院","具有AIE效应水凝胶的设计制备及性能研究","双向","王南乔","材料20-2班","2020011438","李勃天/2016880030","副教授","3","龙宇杰/2019011448,范傲成/2020011397","0804-材料类","0804","很多传统有机发光材料只能在低浓度的溶液中才能发光。唐本忠院士团队发现了一种特殊现象可解决这个难题：一些荧光分子在聚集状态下反而会显示出更加强烈的荧光，并提出这是一种聚集诱导发光(AIE)效应。具有AIE效应的荧光分子不断在智能传感材料、液晶或偏振光材料、高效率的OLED显示和照明材料、细胞器成像和长效追踪的荧光探针等众多领域应用。我们团队将据此进一步研究具有AIE效应水凝胶的设计制备及性能。","C级"]
[246,"新能源与材料学院","合成高性能聚氨酯弹性体","自主","阮浩航","材料20-3班","2020011464","周琼/2176","教授","5","向张驰/2020011453,白恒恺/2020011380,胡荣华/2020011425,努尔苏力坦·吐尔洪江/2020011400","0804-材料类","0804","我们的项目目标是合成一种新型高性能聚氨酯弹性体，解决目前聚氨酯发泡材料存在的诸多问题，如抗氧化性不佳，容易老化，弹性差，重量重，等问题。我们希望后期能够将这种材料运用到实际工程领域，并有所实现，真正将材料的性能发挥出来。","C级"]
[247,"新能源与材料学院","多功能可降解口罩吸附材料研究","自主","张子琦","材料20-1班","2020011373","周琼/2176","教授","5","龙玉婷/2020011408,秦媛/2020011447,崔思逸/2020011372,颜艳梅/2020011375","0804-材料类","0804","环境污染问题日益严重，颗粒物污染具有范围广，治理难，存活时间长的特性，严重危害人类健康。流行病学研究发现，环境中颗粒物的浓度水平与呼吸系统、心肺疾病等的发病率及死亡率存在正相关关系，而且口罩作为一次性用品，消耗量大，并且大多数为不可降解材料，会对环境造成负担。因此，开发具有可降解且具有高效低阻的滤材对口罩行业乃至绿色环境，社会健康具有重要意义。","C级"]
[248,"新能源与材料学院","光热器件研制科创","双向","李栋","材料20-2班","2020011419","陈立强/2167","讲师","4","刘郅煜/2020011436,陈嘉实/2020011401,杨青川/2020011459","0804-材料类","0804","温差发电技术，又称热电发热技术，是一种利用高低热源之间的温差，将热能转化为电能的技术，具有坚实耐用，无噪音，使用寿命长等诸多优点。温差发电技术发展至今仍然存在发电效率不高，使用不普遍的问题，仍待探索。太阳能发电技术在生活中已经普遍应用，但是热能没能得到利用，造成极大浪费。我们想要将太阳能发电技术和温差发电技术联合应用，让光能和热能都能转化为电能，提高能源的利用率，同时提高发电量。","C级"]
[249,"新能源与材料学院","铁铬液流电池隔膜的设计与优化","自主","李宏凯","环境类21-1班","2021010547","徐泉/2014880008","研究员（自然科学）","3","李沛桦/2021011946,左润国/2021011342","0805-能源动力类","0805","随着碳达峰碳中和的提出，现阶段人类迫切需要发展新能源。为深入应用间歇性的新能源,储能技术逐渐展现出优越的性能。铁铬液流电池由于其成本低、运行范围温度大等优势，被认为是大规模储能最有前景的技术之一。离子传导膜是电池分隔正极和负极电解液的结构，开发具有高透过性、低膜面阻、价格低廉的隔膜进一步降低铁铬液流电池的成本，使大规模储能加速落地就显得极为重要。","C级"]
[250,"新能源与材料学院","有机硅季铵盐高性能杀菌剂设计","双向","陈秀琳","材料20-2班","2020011411","李迎超/2017880010","副教授","4","李娅/2020011443,郝嘉淳/2020011467,章西贝/2020011466","0804-材料类","0804","微生物普遍曾在于各种环境当中，大气、土壤、水环境等。微生物造成的腐蚀现象危害石油石化上游开采运输、炼化等安全进行，尤其在管道、冷凝器等设备当中。本课题针对微生物代谢活性特征，设计杀菌剂与增效剂组合，寻求更高的杀菌效果，并通过分子设计等降低杀菌剂成本，达到高效低成本杀菌目的。目前已有几种组合，但需要提高杀菌效果和降低成本。","C级"]
[251,"新能源与材料学院","航空作动器高性能密封材料评价及其性能研究","双向","王智强","材料19-2班","2019011458","周琼/2176","教授","1",null,"0804-材料类","0804","航空航天装备工作环境极为恶劣，以航空液压动力为例，宽温和高压是其主要工作特点，其温度范围为-54～149 ℃，压力高达到35 MPa。航空密封件是关系高端设备性能安全不可或缺的零部件。高分子材料的材料性能受温度、压力影响较大，而目前对高温高压环境下三元乙丙橡胶的耐介质性能、聚四氟乙烯材料的耐磨性能研究鲜有涉及，因此深入研究高温高压下密封材料的耐介质性能、耐磨性能的影响规律与内在机制是极其必要的。","C级"]
[252,"新能源与材料学院","高性能仿生可控黏附表面","自主","刘新阳","储能21-1班","2021011405","徐泉/2014880008","研究员（自然科学）","5","张翔宇/2021011415,张丁予/2021011412,陈子骏/2021011421,吴信宽/2021011427","1207-工业工程类","1207","本项目拟在仿生表面的制备过程中引入梯度特性概念，揭示梯度特性在壁虎脚掌与接触表面黏附和脱附过程中的动态耦合机制发挥的优势。通过对仿生表面进行深入的改造，实现可以在不同环境下快速响应并对物体进行抓取与释放，同时具有良好的循环使用性能，并进一步探讨在机械夹持等领域的应用。","C级"]
[253,"新能源与材料学院","聚电解质水凝胶二极管的设计制备","双向","姜灏楠","材料20-2班","2020011420","李勃天/2016880030","副教授","2","毕博同/2020011382","0804-材料类","0804","设计制备聚电解质水凝胶，并组装形成水凝胶二极管，测试电学性能及力学性能，测试电粘附性能；水凝胶离子二极管相比于传统二极管有着柔软、易制备、生物相容性、透明的优点，在通电后有一定吸附作用，可应用于水下吸附、组织粘合剂、可穿戴可植入设备等众多研究方向，但并不成熟。","C级"]
[254,"新能源与材料学院","自支撑过渡金属基电催化剂的设计合成及电解水研究","自主","杨雨凡","储能21-1班","2021011401","车赛/2020891005","讲师","2","吴奇乐/2021011404","0804-材料类","0804","该项目采用泡沫金属为基底，经过化学刻蚀等表面修饰，原位生长金属有机框架化合物，无需额外添加金属源，随后煅烧制备自支撑电催化剂。原位生长策略有效降低催化剂和基材之间的界⾯电阻，同时接触确保催化剂的机械稳定性，⾃⽀撑原位⽣⻓整齐纳⽶阵列提供⾼的⽐表⾯积、⼤量活性催化位点和高活性材料负载量，同时有利于⽓泡的解析。该材料有望改善传统粉体材料大电流密度下活性物质脱落，性能显著下降的问题。","C级"]
[255,"新能源与材料学院","结合开尔文液滴起电机的新型雨滴发电结构和光雨联合发电装置","自主","侯霁洋","材料21-1班","2021011446","姜大强/2380,王荣亮/2021911009","高级工程师,无","5","高郅昊/2021011448,王靖元/2021011449,侯俊龙/2021011451,巩锦航/2021011456","0805-能源动力类","0805","利用聚四氟乙烯良好的摩擦起电特性，将其附着于ITO导电玻璃之上，并在PTFE膜上附着铝箔，外接导线将氧化铟锡和PTFE膜上铝箔连接构成外回路。通过雨滴与上述结构中PTFE的不断摩擦生电积累电荷，在雨滴滴落瞬间接触铝箔使电路导通从而产生电流。再将其与光伏发电相结合，以光伏板为雨水收集平台，通过再分配系统进行发电。","C级"]
[256,"信息科学与工程学院","基于点云的实景目标物三维建模系统","双向","赵翊","计算机19-4转专业班","2019010878","朱丹丹/2015880005","副教授","4","王长浩/2020010152,刘凯文/2020010394,周子杰/2019011069","0809-计算机类",{"$f":"LEFT(L257,4)","v":"0809"},"目标检测与建模系统在工业控制、城乡设计、地质勘探、无人驾驶等领域有着十分关键的应用。为了实现实景目标物的智能检测和尺寸测量，构建一套基于点云的实景目标物三维建模系统。基于计算摄影、边缘提取、深度学习原理，提出适应室外场景的目标物分割和测量方法；以用户需求为导向，改进实景点云三维建模系统性能；使用飞行器或机器人搭载Jetson智能开发平台进行系统测试；开发简易Android应用程序实现用户交互。","A级"]
[257,"信息科学与工程学院","面向移动边缘计算依赖任务的卸载方法研究","双向","陈杰","计算机20-3班","2020011756","黄霁崴/2018880026","教授","2","付成功/2020011355","0809-计算机类","0809","随着移动计算和物联网应用愈发复杂，移动边缘计算的计算卸载须考虑任务间的依赖关系和执行顺序。当具有依赖关系的任务分别在移动设备和边缘服务器或者在不同的边缘服务器上进行处理时，通常会导致跨设备的数据传输，复杂的任务间依赖关系和通信使移动边缘计算中的计算卸载更具挑战性。本项目旨在综合考虑依赖任务的卸载决策和资源分配，建立优化模型，设计并实现一种边缘计算卸载方案，以联合优化移动应用的延迟和移动设备的能耗。","A级"]
[258,"信息科学与工程学院","基于无人机的移动边缘计算系统能效优化方法研究","双向","周宇","计算机19-4转专业班","2019011949","黄霁崴/2018880026","教授","2","张书航/2021011617","0809-计算机类","0809","本项目旨在对无人机边缘计算系统进行数学刻画，建立任务队列、电池队列和任务卸载模型，利用Lyapunov优化技术和深度强化学习算法，在队列稳定性的前提下，对系统能量消耗进行优化，形成动态最优卸载方案，并在仿真环境进行验证。","B级"]
[259,"信息科学与工程学院","校园景观模型的遮挡处理以及优化研究","自主","赵京翼","电子20-1班","2020011631","陈冲/2018880002","讲师","4","吴远泽/2020011632,杨子毅/2020011629,白嘉/2020011628","0807-电子信息类","0807","在上一期项目中，我们完成了基于深度学习的校园景观识别系统。但目前系统对校园景观的识别存在建筑物占总图的比例较大、图片有遮挡等缺点，导致识别准确率不高。针对上述问题，本项目在已完成的校园景观识别模型的基础上，从数据预处理（遮挡处理）、模型的参数及结构等方面对校园景观模型进行优化。以达到削弱遮挡物对识别效果的影响，根据本校建筑物特点适配模型结构与参数的目的，最终实现识别效果的优化，提高识别的准确率。","B级"]
[260,"信息科学与工程学院","智慧社区服务生成工具与执行平台","自主","何航","计算机20-4转专业班","2020010853","黄霁崴/2018880026","教授","5","李易达/2020011750,廉宇飞/2020011746,秦嘉忆/2020012155,秦海/2020011731","0809-计算机类","0809","随着商品房住宅小区的迅速发展，小区治理问题逐渐成为城市基层治理的重心。在业主自治组织发展建设过程中，出现了成立难、运作难、监督难的问题，互联网技术的发展为城市住宅小区业主自治组织提供了解决问题的新思路。网格社区APP作为互联网技术在基层治理领域新的尝试，运用面向服务编程的思想，采用模块化服务技术，依托服务计算实验室，搭建智慧社区服务生成工具与执行平台，让民调发起者能轻松创建符合自身需求的服务界面。","B级"]
[261,"信息科学与工程学院","基于图卷积神经网络的聚类算法研究","双向","赵新龙","计算机19-4转专业班","2019010849","张丽英/2012","讲师","2","邵帅/2020010271","0809-计算机类","0809","聚类是机器学习的一个基础性问题，作为经典的无监督学习算法在数据挖掘/机器学习的发展历史中留下了不可磨灭的印记。其中,经典的聚类算法K-Means也被选为数据挖掘十大经典算法。 为聚类算法的发展注入了新活力，从深度学习方法中获得灵感的深度聚类获得了最先进的性能，并引起了广泛的关注。本课题的研究内容是针对多元时序数据，通过图神经网络具有强大的结构捕获能力获得时序数据的特征，提升聚类算法的性能。","C级"]
[262,"信息科学与工程学院","基于单片机的桌面级智慧菜园设计","自主","王明海","电子20-2班","2020011676","姜珊/1300","副教授","4","王渝浪/2020011677,尹赛尔/2020011666,于广仁/2020011667","0807-电子信息类","0807","单片机的桌面级智慧菜园设计是基于单片机的温湿度监测系统、水位监测系统和液晶显示模块等多方面技术组成的分布式嵌入式系统，会根据湿度和温度设置的极限值决定是否要采用相应措施，如湿度过低会自行补水，达到一定湿度自行停止，如温度不适，根据液晶显示的温度进行温度调节，从而实现自动控制，极大程度解放了人力，达到了智能控制的效果。","C级"]
[263,"信息科学与工程学院","多任务环境的自适应的可变形机器人智能设计方法","双向","焦汇珅","计算机19-4转专业班","2019011081","朱丹丹/2015880005","副教授","3","赵泽铭/2020011764,高煜洲/2020011711","0809-计算机类","0809","本项目拟基于深度进化强化学习(DERL)框架，利用强化学习和进化算法等方法，搭建可变形态机器人的智能化设计流程，即通过不同的大类场景学习，例如到达目标点，推动物品到指定位置，躲避障碍物等不同环境下任务，进化出特定形态模块，进而自动构建机器人整体结构。","C级"]
[264,"信息科学与工程学院","基于5G技术的温度压力变送器的软硬件设计","双向","姚刘奕","自动化20-3转专业班","2020012147","岳元龙/2014880037","工程师","3","刘孟淇/2020010522,罗毅/2020011154","0808-自动化类","0808","变送器作为工业生产中的重要仪器，具有极高的研究改进价值，本项目是基于5G技术的温度压力变送器的软硬件设计，主要为设计一种新型智能变送器，实现温度测量、压力测量、数据分析、数据传输等功能，并使其能够使用搭载的5G模块实现远程交互。","C级"]
[265,"信息科学与工程学院","低轨互联网星座系统之间的干扰评估方法研究","自主","韩瑞初","电子20-1班","2020011643","姜珊/1300","副教授","1",null,"0807-电子信息类","0807","随着以Starlink为代表的国内外低轨互联网卫星星座的快速发展，有限的频率与轨道资源日益紧张，不同的低轨卫星星座之间势必会在同一时刻存在覆盖范围和频谱范围的重叠，从而造成卫星星座系统间的干扰。如何对各个系统进行协调，使其能够兼容共存是亟需解决的问题。本课题将对低轨卫星星座之间的干扰模型进行研究，并开发相关的软件平台对系统间的干扰影响进行定量分析。","C级"]
[266,"信息科学与工程学院","基于图卷积神经网络的推荐算法研究","双向","院龙","计算机20-1班","2020015365","张丽英/2012","讲师","2","梁伯强/2020011020","0809-计算机类","0809","本课题以基于图神经网络的推荐系统(为研究范例。研究使用先进的图学习方法来建模推荐系统中用户的偏好和意图，以及推荐系统(RS)中项目的特征和受欢迎程度。与传统的RS(包括基于内容的过滤和协作过滤)不同，GLR建立在简单或复杂的图上，其中各种对象(例如，用户、项目和属性)被显式或隐式地连接。如何对各种对象之间存在的显式或隐式链路进行建模，实现更精准的预测，是本课题的研究目标。","C级"]

{"sheet":"创业训练项目","index":1,"n_rows":9,"n_cols":15,"rows_kept":9}
["序号","挂靠单位","项目名称","项目类型","负责人","负责人班级","负责人学号","指导教师","指导教师职称","成员人数","其他成员","项目所属学科","项目所属专业类代码","项目简介","中期检查结果"]
[1,"安全与海洋工程学院","无障碍体验馆","自主","牛泽众","安全20-2班","2020011336","付强/2019880009","助教","6","沈明雨/2019011316,刘超/2020011202,邱军恒/2019011181,王晓龙/2019011328,马铭骏/2019011383","1305-设计学类",{"$f":"LEFT(L2,4)","v":"1305"},"无障碍体验馆是一个由视觉障碍体验区、听力及语言障碍体验区、肢体无障碍体验区和休闲区共 4 个区块组成，每个区域按照“体验-模拟-关怀-助力” 层层递进设置环节，让体验者切实了解残障人士、关注残障人士，全社会共同推动无障碍环境建设的体验馆。其目的是为了让我们能从残疾人的角度去看待这个世界，放大这个社会没有无障碍系统的不便，提高全社会对于无障碍的认识，推行整个社会无障碍的发展。","A级"]
[2,"安全与海洋工程学院","缘梦冰雪","自主","王志浩","海工19-1班","2019011232","付强/2019880009","助教","3","于杭/2021011186,张鹏飞/2019010772","1208-电子商务类","1208","“缘梦冰雪”项目起源于2016年，历经6年的发展致力于推动全国游客、大学生和滑雪爱好者三大群体上冰雪，项目成果曾获北京市红色1+1示范项目评比一等奖，被《大学生》杂志进行封面报道。“缘梦冰雪”项目主要将针对冰雪产业、文化旅游、冰雪运动三大领域进行深入推广以及挖掘。本项目致力于让大家更了解冰雪产业，促进冰雪产业的发展，让冰雪运动走进人们生活，同时为冰雪爱好者提供更便利的运动服务。","B级"]
[3,"地球科学学院","心系乡间花朵，筑梦云端未来","自主","高艺珊","地质19-1班","2019010011","朱锐/2019911002","无","3","王冰/2019010099,周婧雯/2019010102","0401-教育学类","0401","为巩固脱贫攻坚成果，切实发挥好教育扶智在乡村振兴的重要作用，团队联系到119所中学12442名学生参与线上云端筑梦支教活动，并积极搭建线上平台，凝练出四大石油特色课程体系，创新推出“一元”微课，并打造互联网互动平台“虚拟实验室”，将线下现有大型高端实验室数字化和虚拟化，进一步让乡村孩子们走进科研，爱上科研，发挥青年大学生的智慧与力量，做乡村学子们的“云端筑梦人”！","A级"]
[4,"经济管理学院","校缘APP——大学生专属一站式服务平台","自主","李雪颖","金融20-1班","2020011959","孙竹/2102,焦晓宇/2020911007","教授,无","2","岳妍/2020011920","0203-金融学类","0203","校缘APP是一款针对高校大学生量身定做，集大学校园各方面的学习、生活、工作等于一体的，促使大学生的大学生活更加丰富多彩的综合服务平台。校缘综合服务管理平台APP，致力于打造大学生专属的校园服务，形成专属、全面、便捷的校园线上生态。校缘综合服务管理平台APP内包含学习就业、交友娱乐、购物物流及校园管功能，涵盖了用户生活中方方面面的需求，可以为用户提供方便、快捷的生活服务。","A级"]
[5,"经济管理学院","北京沧海桑田系列地质科普旅行指南","自主","南欣宏","信管20-1班","2020010025","朱义清/2186,杨明慧/1886","助教,教授","5","刘艮睿/2020011990,陈永怡/2020012241,刘雅琦/2020011982,董洪赫/2021010086","0709-地质学类","0709","疫情当前，旅游业市场低迷，本项目依托中国石油大学（北京）地质资源与地质工程专业排名全国第一的优势，配合六大现代新媒体渠道，面向大众推出“北京沧海桑田”系列地质科普视频以及配套的地质科普旅行指南，为旅游业注入新的活力。项目踩点调查讲解北京大量地质现象典型的景区，以虎峪自然风景区为起点辐射北京各区，将亿万年来沧海桑田的地质变化融入旅游中，引领文化旅游，推进城市文明建设，为北京市旅游发展新阶段贡献力量。","A级"]
[6,"经济管理学院","石遇·DIY手工坊","自主","孙一铭","地质类21-3班","2021010090","王思聪/2021911002","无","4","聂思玮/2021010067,黄费鹏/2021010079,艾国骏/2021011432","0817-轻工类","0817","打造点：绿色健康，时尚创意。手工DIY制作（口红，唇膏，美工皂)及相关文创，并依据实践逐步跟进研究\n打破传统局限，引入100％纯天然新原料，着力绿色健康；自行设计更新创意模具，满足个性需求。服务全体师生，提供休闲娱乐场所，提高动手能力、体验感、获得感。融入石大校园文化特色设计LOGO与品牌，融入石油精神设计专属石大学子纪念品，将传统文化中古风美与艰苦奋斗的石油精神有机结合，传承发扬传统文化","B级"]
[7,"经济管理学院","《科技+创新，打造首个“公益科普”地质博物馆》","自主","彭晓洋","地质类21-4班","2021010119","王思聪/2021911002","无","5","赵怿玮/2021010094,王雯/2021010099,黄文婷/2021010003,邱大荣/2021010010","0705-地理科学类","0705","  近日，习近平书记指出：科学创新、科学普及是实现创新发展的两翼。科技高速发展，创新日新月异的同时，科学普及也应当与之齐头并进。与其他专业相比，地质类科普的长期短缺成为了科学科普的一大短板。藉此，团队以地球科学博物馆为主，采用线上、线下相结合的模式，借助互联网平台，融入科技与创新元素，打造首个公益类科普性地质博物馆。","B级"]
[8,"外国语学院","智慧冬语——冬奥会汉英平行语料库及网络检索平台 CUPB CQPweb 的建设","自主","刘诗语","英语19-3班","2019012267","于红/1955,刘思航/2019911014","讲师,无","3","许辰为/2019011735,舒轶/2019012283","0502-外国语言文学类","0502","智慧冬语项目是基于自然语言处理及计算机技术的语料库建设项目。\n本项目的核心产品——冬奥会汉英平行语料库，以面向师生为主的专业版和面向大众的通用版双线运营，为学术研究、数据支持等带来便利。\n网络检索平台CUPB CQPweb拥有“检索”“语料下载”“互动”三大功能，实现了语料资源从桌面到云端的迁移。\n项目的盈利方式主要是向用户提供差异化服务，采取知识付费的模式售卖语料，与其他语料所有者合作。","B级"]

{"sheet":"创业实践项目","index":2,"n_rows":6,"n_cols":15,"rows_kept":6}
["序号","挂靠单位","项目名称","项目类型","负责人","负责人班级","负责人学号","指导教师","指导教师职称","成员人数","其他成员","项目所属学科","项目所属专业类代码","项目简介","中期检查结果"]
[1,"化学工程与环境学院","碳追踪与分布装置","双向","王秋扬","环境类21-1班","2021010539","张霖宙/2014880038","副教授","2","张焱/2019010628","0813-化工与制药类",{"$f":"LEFT(L2,4)","v":"0813"},"通过单片机与5G物联网技术、云计算平台、深度神经网络算法相结合，可在工厂等环境下安全、高效地实现对二氧化碳时空分布的建模与分析，同时依托云平台与深度学习神经网络的运算能力对碳分布、碳排放进行时空分析与预测，为实现碳中和、碳达峰目标提供有效助力。","A级"]
[2,"机械与储运工程学院","“油子之歌”—助力乡村振兴，实现民族梦想融媒介平台","自主","苏艺薇","储运20-3班","2020010995","曹培强/1721","教授","6","吕菱荷/2020010997,董一明/2020011004,徐驰翀/2019011960,宗思翰/2021010061,王志华/2018010721","0204-经济与贸易类",{"$f":"LEFT(L3,4)","v":"0204"},"“油子之歌”——助力乡村振兴，实现民族梦想融媒介平台是一个基于乡村振兴战略的以文化传播及助农为主体的平台。通过文化在精神层面及物质层面的传播，助力乡村振兴战略落到实处，从源头上提升产品质量，增产增收，改善乡村存在的不平衡不充分发展的问题。","A级"]
[3,"机械与储运工程学院","打造校园KOL助力乡村振兴","自主","翟梦璇","机械20-2班","2020010765","王文杰/2020911009,付强/2019880009","无,助教","4","唐舒静/2019011216,王楚维/2020012084,王韵怡/2020010766","1204-公共管理类","1204","本项目拟打造一个基于打造校园KOL助力农产品销售的创业新兴平台，通过对接线下乡村无公害农产品，利用校园KOL的流量优势，帮助上百万农民解决产品滞销等问题，让消费者能够享受到新鲜健康又低价的农产品，实现三赢。对农民而言，通过平台能够显著提高农产品销量，大幅提升农产品附加值；对于大学生来说，利用自己的能力获得创业收入；对消费者来说，农民与消费者直接对接产品，让消费者获得了更快捷的服务和更优质的产品。","C级"]
[4,"理学院","疫情在物流行业对人们生活的影响","双向","李文涵","数学类21-1班","2021011779","马宁/2205","副教授","3","彭尧/2021011780,傅铠锋/2021011777","0701-数学类","0701","我们主要的调查方向是疫情在物流行业对人们生活的影响，主要通过对因疫情迟滞的运货率，营业额，运来的货物质量，对送货人及收货的人身健康安全等方面的社会调查，分析相应数据并得出疫情在物流行业对人们生活的主要影响方面以及影响的程度，并根据影响提出相应的方案来减少损失。","C级"]
[5,"新能源与材料学院","中石新材集团——大规模长时储能电池全球领航者","自主","杨子骥","新能源20-1班","2020011507","徐泉/2014880008","教授","6","单威/2020011505,蔡佳烨/2019011537,万一博/2020011485,田宇慈/2020011478,梁校熙/2020011497","0804-材料类","0804","为积极响应国家30•60双碳目标，中石新材团队以铁铬液流电池为切入点，将本项目定位于颠覆传统储能方式的领航者。铁铬液流电池是一种正、负极活性物质均为液体的电化学电池，但目前面临封装技术差、副反应多等问题，团队瞄准产品痛点，首创世界领先黑科技，解决了电池正负极电解液交叉污染、大功率电池堆封装等问题，保证了电池组的高效率运行，为储能领域带来新的技术创新和突破，将有力促进相关产业的大规模商业运用与推广。","C级"]